Workbook

Sheet Version (hidden)
A1: Service | B1: =MID(CELL("dateiname"),FIND("[",CELL("dateiname"))+1,FIND("]",CELL("dateiname"))-FIND("[",CELL("dateiname"))-1) -> test.xlsm
A2: Version: | B2: 1.0

Sheet Hinweise zum Programm
A1: Hinweise zur Bedienung
A3: Allgemeine Hinweise:
A4: Das Auslegungstool Draller dient als Hilfsmittel zur Technischen Planung des emcoair KSW.
A6: Auslegung:
A7: Im Tabellenblatt "Auslegung" erfolgt die Festlegung des gewünschten Auslasstyps. Bei Eingabe der Vorgabedaten, wie z.B. dem benötigten Luftvolumenstrom werden die technischen Daten des gewählten Luftdurchlasses berechnet.
A9: Strömungsformen:
A10: Die im Tabellenblatt "Auslegung" ermittelten Strömungsgeschwindigkeiten gelten für einen deckenbündig montierten Luftdurchlass mit horizontaler Ausblascharakteristik.
A12: Funktion:
A13: Im Tabellenblatt "Funktion" finden Sie eine kurze Funktionsbeschreibung zum emcoair KSW.
A15: Maße:
A16: Das Tabellenblatt "Maße" gibt einen Überblick über die wählbare Größen und Varianten des emcoair KSW mit detaillierten Bemaßungen.
A18: Hinweise zur Funktion:
A19: Für eine ordnungsgemäße Funktion des Auslegungstools muss die Ausführung von Makros und MS Excel aktiviert sein. Die Aktivierung von Makros erfolgt im Menü Makrosicherheit.
A20: Einstellung unter MS Excel 97-2003: Extras → Makro → Sicherheit
A21: Einstellung unter MS Excel 2007: Entwicklertools* → Makrosicherheit
A22: *Das Menü Entwicklertools muss unter Umständen eingefügt werden unter Excel-Optionen

Sheet Auslegung
A1: Auslegung Kampmann MPC
A3: Eingabefelder sind gelb gekennzeichnet
A4: Ergebnisfelder sind blau gekennzeichnet
A6: Vorgaben
A7: Strömungstechnik | B7: Symbol | C7: Einheit | D7: Wert
A8: Bezeichung | B8: Symbol | C8: Einheit
B9: L | C9: mm
B10: L | C10: mm
B11: L | C11: mm
A12: Durchlass Typ | D12: MPC-R-M
D13: MPC-Q
D14: MPC-R-S
D15: MPC-R-M
D16: MPC-R-L
D17: MPC-V
A18: Nenn-Abmessung Frontblende | B18: DN | C18: [-] | D18: 600
D19: =IF(OR(D12="MPC-R-S",D12="MPC-V",D12="MPC-Q"),300,"") -> 
D20: 600
D21: 625
A25: Durchmesser Anschlussstutzen | B25: DN | C25: [-] | D25: 250 | F25: 161
D26: =IF($D$18=300,100,IF(OR($D$18=600,$D$18=625),"","")) -> 
D27: =IF($D$18=300,125,IF(OR($D$18=600,$D$18=625),125,"")) -> 125
D28: =IF($D$18=300,160,IF(OR($D$18=600,$D$18=625),160,"")) -> 160
D29: =IF($D$18=300,"",IF(OR($D$18=600,$D$18=625),200,"")) -> 200
D30: =IF($D$18=300,"",IF(OR($D$18=600,$D$18=625),225,"")) -> 225
D31: =IF($D$18=300,"",IF(OR($D$18=600,$D$18=625),250,"")) -> 250
A32: Luftvolumenstrom | B32: V·SUP | C32: m³/h | D32: 490
A33: max. Luftgeschwindigkeit im Aufenthaltsbereich | B33: vMax | C33: m/s | D33: 0.2
A34: Temperatur Zuluft | B34: tSUP | C34: °C | D34: 18
A35: Temperatur Raum | B35: tRaum | C35: °C | D35: 26
A36: Raumdaten
A37: Raumhöhe | B37: H1 | C37: m | D37: 3
A38: Obergrenze Aufenthaltsbereich | B38: H2 | C38: m | D38: 1.8
A39: Raumlänge | B39: LR | C39: m | D39: 7 | I39: 1 | J39: Breite Frontblende | K39: =Grunddaten!$S$141 -> 595 | L39: mm
A40: Raumbreite | B40: BR | C40: m | D40: 10 | I40: 2 | J40: Höhe Anschlusskasten | K40: =Grunddaten!$R$141 -> 300 | L40: mm
A41: Abstand Durchlass zur nächstgelegenen Wand | B41: a | C41: m | D41: 6 | I41: 3 | J41: Durchmesser Anschlussstutzen | K41: =Grunddaten!$T$141 -> 248 | L41: mm
A42: kleinster Abstand zwischen 2 Durchlässen | B42: smin | C42: m | D42: 2 | I42: 4 | J42: Minimaler Volumenstrom | K42: =Grunddaten!$U$141 -> 200 | L42: m³/h
I43: 5 | J43: Maximaler Volumenstrom | K43: =Grunddaten!$V$141 -> 450 | L43: m³/h
A44: Akustikdaten
A45: Raumart nach VDI 2081 | D45: Konferenzraum
C46: Einzelbüro
C47: Großraumbüro
C48: Werkstätten
C49: Ruheraum, Pausenraum
C50: Untersuchungsraum Krankenhaus
C51: Rundfunk-, Fernsehstudio
C52: Chemielabor
C53: Wasch- und WC-Raum, Umkleide
C54: Schwimmbad
C55: EDV-Raum
C56: Konzertsaal
C57: Lesesaal
C58: Museum
C59: Küche
C60: Theater, Kino
C61: Klassen- Seminarraum
C62: Gaststätte
C63: kein Typ
C64: Konferenzraum
C65: Hotelzimmer
C66: Hörsaal
C67: Bettenzimmer Krankenhaus
C68: Verkaufsraum
C69: Sporthalle
A70: Betrachteter Durchlass | D70: Zuluft
D71: Zuluft
D72: Abluft
A73: Abstand zur Schallquelle | B73: r | C73: m | D73: 5
A74: Zusatzdaten
A75: Funktion | F75: =VLOOKUP(B75,Eingabe!$A$45:$B$48,2,FALSE) ->  | G75: =VLOOKUP($B$75,$B$76:$G$78,6,0) -> Z
B76: =IF(D12=500,"Zuluft","") ->  | G76: Z
B77: =IF(D12=500,"Abluft","") ->  | G77: A
B78: =IF(D12>500,"Zuluft/Abluft-Kombination","") -> Zuluft/Abluft-Kombination | G78: K
A79: Farbe Abdeckprofil und Endwinkel | B79: 9010 | F79: =VLOOKUP(B79,Eingabe!A45:B48,2,FALSE) ->  | G79: =$B$79 -> 9010
A80: Farbe Luftlenkelement | B80: schwarz | G80: =VLOOKUP(B80,B81:G83,6,FALSE) -> S
B81: schwarz | G81: S
B82: weiß | G82: W
B83: grau | G83: G
A84: Einstellung Luftlenkelement | B84: Deckenstrahl D / E | G84: =VLOOKUP(B84,B85:G88,6,FALSE) -> D
B85: Deckenstrahl D / E | G85: D
B86: Sondereinstellung | G86: S
A88: Werkstoff Anschlusskasten | B88: Stahl verzinkt | G88: V
B89: Stahl verzinkt
A90: frontseitig bedienbare Drossel | B90: ohne | F90: =VLOOKUP(B90,Eingabe!$A$45:$B$51,2,FALSE) ->  | G90: =VLOOKUP(B90,B91:G93,6,FALSE) -> 0
B91: mit | G91: 1
B92: ohne | G92: 0
A93: Innenauskleidung | B93: Baustoffklasse B1 (Standard) | G93: =VLOOKUP(B93,B94:G97,6,FALSE) -> B1
B94: Baustoffklasse B1 (Standard) | G94: B1
B95: Baustoffklasse A2 (optional) | G95: A2
A97: Merkmalschlüssel | B97: =CONCATENATE(1,"KSW","0",D18,G97,G75,"A",G79,G80,G84,G88,G90,G93,1,G98) -> 1KSW0600MPC-R-MZA9010SDV0B11100 | G97: =IF(D12<1000,CONCATENATE(0,D12),D12) -> MPC-R-M
G98: =IF(K41=78,"080",100) -> 100
A99: Berechnung strömungstechnische und Akustische Daten | D99: Zuluft | E99: Abluft
A100: Druckverlust | B100: Dpt | C100: Pa | D100: =IF(D70="Zuluft",Grunddaten!I141,"") -> 36.74032734 | E100: =IF(D70="Abluft",IF(Grunddaten!I142=0,"a. Anf",Grunddaten!I142),"") -> 
A101: kritischer Strahlweg | B101: xkr. | C101: m | D101: =IF(D70="Zuluft",IF(D12="MPC-V","a. Anf",IF(D34>=D35,"Heizfall",xkr._vx!$F$11)),"") -> 1.895397351
A102: Laufweg bis Fußbodenbereich | B102: xx | C102: m | D102: =xkr._vx!L24 -> 9.5
A103: Laufweg bis Aufenthaltsbereich nach Stoßpunkt | B103: xx+y | C103: m | D103: =xkr._vx!L26 -> 2.2
A104: Laufweg bis Aufenthaltsbereich nach xkrit | B104: xxkr | C104: m | D104: =IF(D34>=D35,"Heizfall",xkr._vx!L28) -> 3.592453626
A105: Geschwindigkeit im Fußbodenbereich in Wandnähe | B105: vx1 | C105: m/s | D105: =IF(D70="Zuluft",IF(D12="MPC-V","a. Anf",IF(xkr._vx!$N$24< 0.1,"< 0,1",xkr._vx!$N$24)),"") -> < 0,1
A106: Zugluftrisiko am Fußboden** | B106: DR1 | C106: % | D106: =IF(D70="Zuluft",IF(D12="MPC-V","a. Anf",IF($D$34>$D$35,"Heizfall",DR!$C$16)),"") -> 0
A107: =IF(D12="MPC-Q","Geschwindigkeit unterhalb des Druchlasses","Geschwindigkeit im Aufenthaltsbereich*") -> Geschwindigkeit im Aufenthaltsbereich* | B107: vx2 | C107: =IF(AND(D35<=D34,D12="MSA"),"m","m/s") -> m/s | D107: =IF(D70="Zuluft",IF(D12="MPC-V","a. Anf",IF($D$12="MPC-Q",xkr._vx!$N$31,IF(xkr._vx!$N$26<0.1,"< 0,1",xkr._vx!$N$26))),"") -> 0.1028968241
A108: Zugluftrisiko im Aufenthaltsbereich** | B108: DR2 | C108: % | D108: =IF(D70="Zuluft",IF(D12="MPC-V","a. Anf",IF($D$34>$D$35,"Heizfall",DR!$C$24)),"") -> 6.878931183
A109: Geschwindigkeit nach Ablösen an Xkr. | B109: vx3 | C109: m/s | D109: =IF(D70="Zuluft",IF(D12="MPC-V","a. Anf",IF(xkr._vx!N28<0.1,"<0,1",IF($D$34>=$D$35,"Heizfall",xkr._vx!$N$28))),"") -> <0,1
A110: Zugluftrisiko nach Ablösepunkt** | B110: DR3 | C110: % | D110: =IF(D70="Zuluft",IF(D12="MPC-V","a. Anf",IF($D$34>=$D$35,"Heizfall",DR!$C$32)),"") -> 6.044034902
A111: Resultierende Raumkategorie | B111: RAL | C111: [-] | D111: =IF(D70="Zuluft",IF(D12="MPC-V","a. Anf",IF(D34>=D35,"Heizfall",IF(AND($D$106<9.95,$D$108<9.95,$D$110<9.95),"A",IF(AND($D$106<19.95,$D$108<19.95,$D$110<19.95),"B",IF(AND($D$106<29.95,$D$108<29.95,$D$110<29.95),"C","Außerhalb C"))))),"") -> A
A112: =CONCATENATE("Schallleistungspegel, ",D70,"durchlass") -> Schallleistungspegel, Zuluftdurchlass | B112: LWA_SUP/ETA | C112: dB(A) | D112: =IF(D70="Zuluft",IF(Lw!K521<25,"<25",Lw!K521),"") -> 41.58128049 | E112: =IF(D70="Abluft",IF(Lw!K522<25,"<25",Lw!K522),"") -> 
A113: Schallleistungspegel, Zahlenwert Zuluft + Abluft | D113: =Lw!$K$521 -> 41.58128049 | E113: =Lw!K522 -> 25.15096651
A114: =CONCATENATE("Schallldruckpegel in ",D73,"m Entfernung, ",D70,"durchlass") -> Schallldruckpegel in 5m Entfernung, Zuluftdurchlass | B114: LPA_SUP/ETA | C114: dB(A) | D114: =IF(D70="Zuluft",IF(D112="<25","<25",IF(D112+10*LOG(Lw!$H$575/(4*PI()*Auslegung!D73^2)+4/(Lw!$J$575))>=25,D112+10*LOG(Lw!$H$575/(4*PI()*Auslegung!D73^2)+4/(Lw!$J$575)),"<25")),"") -> 34.05426433 | E114: =IF(D70="Abluft",IFERROR(IF(E112="<25","<25",IF(E112+10*LOG(Lw!$H$575/(4*PI()*Auslegung!D73^2)+4/(Lw!$J$575))>=25,E112+10*LOG(Lw!$H$575/(4*PI()*Auslegung!D73^2)+4/(Lw!$J$575)),"<25")),"a. Anf"),"") -> 
A115: Schalldruckpegel rechnerisch | D115: =IF(10*LOG(10^(D113/10)+10^(E113/10))<25,"<25",10*LOG(10^(D113/10)+10^(E113/10))) -> 41.67897252
A116: Summen-Schallldruckpegel im betrachteten Punkt | B116: LPA | C116: dB(A) | D116: =IFERROR(IF(E113-D113>6,MAX(E113,D113),D115),IF(E114="a. Anf",D114,IF(AND(D114="<25",E114="<25"),"<25","a. Anf"))) -> 41.67897252
A117: *Gilt für Eintritt der Luftströmung in den Aufenthaltbereich nach dem Stoßpunkt
A118: ** Berechnung gemäß DIN EN ISO 7730
A120: Oktavspektrum Schallleistung | B120: LW_Okt | C120: dB | D120: =D99 -> Zuluft | E120: =E99 -> Abluft
B121: LW_125 | C121: dB | D121: =IF($D$70="Zuluft",IF($D$113<25,"",IFERROR(Lw!M$522,"a. Anf")),"") -> 43.30615244 | E121: =IF($D$70="Abluft",IF($E$113<25,"",IFERROR(Lw!M$523,"a. Anf")),"") -> 
B122: LW_250 | C122: dB | D122: =IF($D$70="Zuluft",IF($D$113<25,"",IFERROR(Lw!N$522,"a. Anf")),"") -> 39.50551954 | E122: =IF($D$70="Abluft",IF($E$113<25,"",IFERROR(Lw!N$523,"a. Anf")),"") -> 
B123: LW_500 | C123: dB | D123: =IF($D$70="Zuluft",IF($D$113<25,"",IFERROR(Lw!O$522,"a. Anf")),"") -> 39.09721162 | E123: =IF($D$70="Abluft",IF($E$113<25,"",IFERROR(Lw!O$523,"a. Anf")),"") -> 
B124: LW_1000 | C124: dB | D124: =IF($D$70="Zuluft",IF($D$113<25,"",IFERROR(Lw!P$522,"a. Anf")),"") -> 38.13082558 | E124: =IF($D$70="Abluft",IF($E$113<25,"",IFERROR(Lw!P$523,"a. Anf")),"") -> 
B125: LW_2000 | C125: dB | D125: =IF($D$70="Zuluft",IF($D$113<25,"",IFERROR(Lw!Q$522,"a. Anf")),"") -> 31.18759345 | E125: =IF($D$70="Abluft",IF($E$113<25,"",IFERROR(Lw!Q$523,"a. Anf")),"") -> 
B126: LW_4000 | C126: dB | D126: =IF($D$70="Zuluft",IF($D$113<25,"",IFERROR(Lw!R$522,"a. Anf")),"") -> 24.25700115 | E126: =IF($D$70="Abluft",IF($E$113<25,"",IFERROR(Lw!R$523,"a. Anf")),"") -> 
B127: LW_8000 | C127: dB | D127: =IF($D$70="Zuluft",IF($D$113<25,"",IFERROR(Lw!S$522,"a. Anf")),"") -> 23.55530303 | E127: =IF($D$70="Abluft",IF($E$113<25,"",IFERROR(Lw!S$523,"a. Anf")),"") -> 
A129: Änderungen vorbehalten
A130: Stand: | E130: =IF(D12=500,KSW(),"") -> 
A131: =Grunddaten!B136 -> 2020-10-30

Sheet Datenblatt
A2: Typ | B2: =Auslegung!$D$12 -> MPC-R-M | I2: =TODAY() -> 2021-01-04
A3: Projekt
A5: Definition:
A6: Durchlass, Typ: | B6: =Auslegung!$D$12 -> MPC-R-M | C6: Nenndurchmesser: | F6: =Auslegung!$D$18 -> 600 | G6: Stutzen: | I6: =CONCATENATE("DN ",Auslegung!D25) -> DN 250
A7: Schlitzanzahl: | B7: =Auslegung!D18 -> 600 | C7: Farbe Abdeckprofil: | E7: =Auslegung!B79 -> 9010
A8: Innenauskleidung: | B8: =Auslegung!G93 -> B1 | C8: Drossel fb: | E8: =Auslegung!B90 -> ohne
A10: Beschreibung: Multifunktionaler Deckenluftdurchlass mit perforierter Frontplatte für den Deckeneinbau. Das Frontblech ist mit Schnellverschlüssen ausgestattet und zu Reinigungszwecken jederzeit abklappbar. Die Strahlausbreitung ist frei wählbar, es stehen eine quellluftartige (MPC-Q), eine radiale (MPC-R) und eine variable (MPC-V) luftlenkung zur Verfügung.
A11: Einsatzbereich
A12: Minimalvolumenstrom | B12: V°min | C12: =Auslegung!K$42 -> 200 | D12: m³/h
A13: Maximalvolumenstrom | B13: V°max | C13: =Auslegung!$K$43 -> 450 | D13: m³/h
A15: technische Vorgaben | F15: Raumdaten
A16: Luftvolumenstrom Zuluft | B16: V·SUP | C16: =Auslegung!D32 -> 490 | D16: m³/h | F16: Raumhöhe | G16: =Auslegung!D37 -> 3 | H16: m
A17: Temperatur Zuluft | B17: tZUL | C17: =Auslegung!D34 -> 18 | D17: °C | F17: Raumbreite | G17: =Auslegung!D40 -> 10 | H17: m
A18: Temperatur Raum | B18: tRAUM | C18: =Auslegung!D35 -> 26 | D18: °C | F18: Raumlänge | G18: =Auslegung!D39 -> 7 | H18: m
A19: =Auslegung!A41 -> Abstand Durchlass zur nächstgelegenen Wand | B19: =Auslegung!B41 -> a | C19: =Auslegung!D41 -> 6 | D19: m | F19: Nutzungsart | G19: =Auslegung!D45 -> Konferenzraum
A20: =Auslegung!A42 -> kleinster Abstand zwischen 2 Durchlässen | B20: smin | C20: =Auslegung!D42 -> 2 | D20: m
A22: technische Daten
A23: =CONCATENATE("Druckverlust ",Auslegung!D70,"durchlass") -> Druckverlust Zuluftdurchlass | B23: Dp_SUP/ETA | C23: =IF(Auslegung!$D$100="",Auslegung!$E$100,Auslegung!$D$100) -> 36.74032734 | E23: Pa
A24: kritischer Strahlweg | B24: xkr. | C24: =Auslegung!D101 -> 1.895397351 | E24: m
A25: =Auslegung!A105 -> Geschwindigkeit im Fußbodenbereich in Wandnähe | B25: vx1 | C25: =Auslegung!D105 -> < 0,1 | E25: m/s
A26: =Auslegung!A106 -> Zugluftrisiko am Fußboden** | B26: DR1 | C26: =Auslegung!$D$106 -> 0 | E26: %
A27: =Auslegung!A107 -> Geschwindigkeit im Aufenthaltsbereich* | B27: vx2 | C27: =Auslegung!$D$107 -> 0.1028968241 | E27: m/s
A28: =Auslegung!A108 -> Zugluftrisiko im Aufenthaltsbereich** | B28: DR2 | C28: =Auslegung!$D$108 -> 6.878931183 | E28: %
A29: =Auslegung!A109 -> Geschwindigkeit nach Ablösen an Xkr. | B29: vx3 | C29: =Auslegung!$D$109 -> <0,1 | E29: m/s
A30: =Auslegung!A110 -> Zugluftrisiko nach Ablösepunkt** | B30: DR3 | C30: =Auslegung!$D$110 -> 6.044034902 | E30: %
A31: Raumkategorie** | B31: RAL | C31: =Auslegung!D111 -> A | E31: ="-/-" -> -/- | F31: Maße
A32: =Auslegung!$A$112 -> Schallleistungspegel, Zuluftdurchlass | B32: LWA_SUP/ETA | C32: =IF(Auslegung!$D$112="",Auslegung!$E$112,Auslegung!$D$112) -> 41.58128049 | E32: dB(A) | F32: =Auslegung!J39 -> Breite Frontblende | H32: =Auslegung!K39 -> 595 | I32: mm
A33: =Auslegung!$A$114 -> Schallldruckpegel in 5m Entfernung, Zuluftdurchlass | B33: LPA_SUP | C33: =IF(Auslegung!$D$114="",Auslegung!$E$114,Auslegung!$D$114) -> 34.05426433 | E33: dB(A) | F33: =Auslegung!J40 -> Höhe Anschlusskasten | H33: =Auslegung!K40 -> 300 | I33: mm
F34: =Auslegung!J40 -> Höhe Anschlusskasten | H34: =Auslegung!K40 -> 300 | I34: mm
F35: =Auslegung!J41 -> Durchmesser Anschlussstutzen | H35: =Auslegung!K41 -> 248 | I35: mm
A36: *Gilt für Eintritt der Luftströmung in den Aufenthaltbereich nach dem Stoßpunkt
A37: ** Raumkategorie nach DIN EN ISO 7730: DR<10 % = A; DR<20 % = B; DR<30 % = C
A40: Oktavspektrum Schallleistungspegel | B40: f [Hz] | C40: 125 | D40: 250 | E40: 500 | F40: 1000 | G40: 2000 | H40: 4000 | I40: 8000
A41: =Auslegung!D70 -> Zuluft | B41: LWA_Okt | C41: =IF(Auslegung!$D$121="",Auslegung!$E$121,Auslegung!$D$121) -> 43.30615244 | D41: =IF(Auslegung!$D$122="",Auslegung!$E$122,Auslegung!$D$122) -> 39.50551954 | E41: =IF(Auslegung!$D$123="",Auslegung!$E$123,Auslegung!$D$123) -> 39.09721162 | F41: =IF(Auslegung!$D$124="",Auslegung!$E$124,Auslegung!$D$124) -> 38.13082558 | G41: =IF(Auslegung!$D$125="",Auslegung!$E$125,Auslegung!$D$125) -> 31.18759345 | H41: =IF(Auslegung!$D$126="",Auslegung!$E$126,Auslegung!$D$126) -> 24.25700115 | I41: =IF(Auslegung!$D$127="",Auslegung!$E$127,Auslegung!$D$127) -> 23.55530303

Sheet Grunddaten (hidden)
A1: Typ | B1: Nenngröße | D1: Stutzendurchmesser | E1: Variante | F1: Widerstandsbeiwert | G1: Durchmesser Anschluss | H1: Anströmgeschwindigkeit | I1: Druckverlust | J1: CAP-Konstanten Geschwindigkeit | L1: CAP-Konstanten Xkrit. | O1: CAP-Konstanten ABLUFT | Q1: Zeta-Abluft | R1: Abmessungen | U1: Volumenstrom
B2: DN | D2: dST | E2: V | F2: z | G2: d | H2: v | I2: DpAnströmung | J2: K031 | K2: K033 | L2: K041 | M2: K042 | N2: K043 | O2: K011 | P2: K012 | Q2: z | R2: Höhe AK | S2: Breite | T2: D Stutzen | U2: Minimal | V2: Maximal
B3: mm | D3: mm | E3: 1 | F3: 1 | G3: mm | H3: m/s | I3: Pa | J3: 1 | K3: 1 | L3: 1 | M3: 1 | N3: 1 | O3: 1 | P3: 1 | Q3: 1 | R3: mm | S3: mm | T3: mm | U3: m³/h | V3: m³/h
A4: MPC-R | B4: 300 | C4: =CONCATENATE(A4,E4,B4,D4) -> MPC-R-S300100 | D4: 100 | E4: ="-S" -> -S | F4: 2.305719052 | H4: =Auslegung!$D$32/(PI()/4*(D4/1000)^2*3600) -> 17.33020491 | I4: =F4*1.2/2*H4^2 -> 415.4942655 | J4: 0.001028216959 | K4: 1.11835034 | L4: 0.00374017203 | M4: 0.3659212917 | N4: 1.330265369 | R4: 241 | S4: 295 | T4: 98 | U4: 40 | V4: 190
A5: MPC-R | B5: 300 | C5: =CONCATENATE(A5,E5,B5,D5) -> MPC-R-S300125 | D5: 125 | E5: ="-S" -> -S | F5: 3.52742498 | H5: =Auslegung!$D$32/(PI()/4*(D5/1000)^2*3600) -> 11.09133115 | I5: 260.3612694 | J5: 0.001028216959 | K5: 1.11835034 | L5: 0.00374017203 | M5: 0.3659212917 | N5: 1.330265369 | R5: 241 | S5: 295 | T5: 123 | U5: 40 | V5: 190
A6: MPC-R | B6: 300 | C6: MPC-R-S300160 | D6: 160 | E6: ="-S" -> -S | F6: 4.861199545 | H6: =Auslegung!$D$32/(PI()/4*(D6/1000)^2*3600) -> 6.769611295 | I6: 133.6663731 | J6: 0.001028216959 | K6: 1.11835034 | L6: 0.00374017203 | M6: 0.3659212917 | N6: 1.330265369 | R6: 241 | S6: 295 | T6: 158 | U6: 40 | V6: 190
A7: MPC-R | B7: 300 | C7: MPC-R-S300225 | D7: 225 | E7: ="-S" -> -S | H7: =Auslegung!$D$32/(PI()/4*(D7/1000)^2*3600) -> 3.423250353 | I7: 0 | R7: 241 | S7: 295 | T7: 223 | U7: 40 | V7: 190
A8: MPC-R | B8: 300 | C8: MPC-R-S300250 | D8: 250 | E8: ="-S" -> -S | H8: =Auslegung!$D$32/(PI()/4*(D8/1000)^2*3600) -> 2.772832786 | I8: 0 | R8: 241 | S8: 295 | T8: 248 | U8: 40 | V8: 190
A9: MPC-R | B9: 300 | C9: MPC-R-M300125 | D9: 125 | E9: ="-M" -> -M | H9: =Auslegung!$D$32/(PI()/4*(D9/1000)^2*3600) -> 11.09133115 | I9: 0 | R9: 241 | S9: 295 | T9: 98
A10: MPC-R | B10: 300 | C10: MPC-R-M300160 | D10: 160 | E10: ="-M" -> -M | H10: =Auslegung!$D$32/(PI()/4*(D10/1000)^2*3600) -> 6.769611295 | I10: 0 | R10: 241 | S10: 295 | T10: 123
A11: MPC-R | B11: 300 | C11: MPC-R-M300200 | D11: 200 | E11: ="-M" -> -M | H11: =Auslegung!$D$32/(PI()/4*(D11/1000)^2*3600) -> 4.332551229 | I11: 0 | R11: 241 | S11: 295 | T11: 158
A12: MPC-R | B12: 300 | C12: MPC-R-M300225 | D12: 225 | E12: ="-M" -> -M | H12: =Auslegung!$D$32/(PI()/4*(D12/1000)^2*3600) -> 3.423250353 | I12: 0 | R12: 241 | S12: 295 | T12: 223
A13: MPC-R | B13: 300 | C13: MPC-R-M300250 | D13: 250 | E13: ="-M" -> -M | H13: =Auslegung!$D$32/(PI()/4*(D13/1000)^2*3600) -> 2.772832786 | I13: 0 | R13: 241 | S13: 295 | T13: 248
A14: MPC-R | B14: 300 | C14: MPC-R-L300125 | D14: 125 | E14: ="-L" -> -L | H14: =Auslegung!$D$32/(PI()/4*(D14/1000)^2*3600) -> 11.09133115 | I14: 0 | R14: 241 | S14: 295 | T14: 98
A15: MPC-R | B15: 300 | C15: MPC-R-L300160 | D15: 160 | E15: ="-L" -> -L | H15: =Auslegung!$D$32/(PI()/4*(D15/1000)^2*3600) -> 6.769611295 | I15: 0 | R15: 241 | S15: 295 | T15: 123
A16: MPC-R | B16: 300 | C16: MPC-R-L300200 | D16: 200 | E16: ="-L" -> -L | H16: =Auslegung!$D$32/(PI()/4*(D16/1000)^2*3600) -> 4.332551229 | I16: 0 | R16: 241 | S16: 295 | T16: 158
A17: MPC-R | B17: 300 | C17: MPC-R-L300225 | D17: 225 | E17: ="-L" -> -L | H17: =Auslegung!$D$32/(PI()/4*(D17/1000)^2*3600) -> 3.423250353 | I17: 0 | R17: 241 | S17: 295 | T17: 223
A18: MPC-R | B18: 300 | C18: MPC-R-L300250 | D18: 250 | E18: ="-L" -> -L | H18: =Auslegung!$D$32/(PI()/4*(D18/1000)^2*3600) -> 2.772832786 | I18: 0 | R18: 241 | S18: 295 | T18: 248
A19: MPC-V | B19: 300 | C19: MPC-V300100 | D19: 100 | F19: 2.198031502 | H19: =Auslegung!$D$32/(PI()/4*(D19/1000)^2*3600) -> 17.33020491 | I19: 396.0887967 | R19: 241 | S19: 295 | T19: 98 | U19: 40 | V19: 160
A20: MPC-V | B20: 300 | C20: MPC-V300125 | D20: 125 | F20: 3.023440227 | H20: =Auslegung!$D$32/(PI()/4*(D20/1000)^2*3600) -> 11.09133115 | I20: 223.1618645 | R20: 241 | S20: 295 | T20: 123 | U20: 40 | V20: 160
A21: MPC-V | B21: 300 | C21: MPC-V300160 | D21: 160 | F21: 5.460464866 | H21: =Auslegung!$D$32/(PI()/4*(D21/1000)^2*3600) -> 6.769611295 | I21: 150.1441213 | R21: 241 | S21: 295 | T21: 158 | U21: 40 | V21: 160
A22: MPC-V | B22: 300 | C22: MPC-V300225 | D22: 225 | H22: =Auslegung!$D$32/(PI()/4*(D22/1000)^2*3600) -> 3.423250353 | I22: 0 | R22: 241 | S22: 295 | T22: 223 | U22: 40 | V22: 160
A23: MPC-V | B23: 300 | C23: MPC-V300250 | D23: 250 | H23: =Auslegung!$D$32/(PI()/4*(D23/1000)^2*3600) -> 2.772832786 | I23: 0 | R23: 241 | S23: 295 | T23: 248 | U23: 40 | V23: 160
A24: MPC-Q | B24: 300 | C24: MPC-Q300100 | D24: 100 | F24: 1.499212967 | H24: =Auslegung!$D$32/(PI()/4*(D24/1000)^2*3600) -> 17.33020491 | I24: 270.1605775 | O24: 0.0008012176099 | P24: 2.069956232 | Q24: 1.499212967 | R24: 241 | S24: 295 | T24: 98 | U24: 40 | V24: 350
A25: MPC-Q | B25: 300 | C25: MPC-Q300125 | D25: 125 | F25: 1.812913962 | H25: =Auslegung!$D$32/(PI()/4*(D25/1000)^2*3600) -> 11.09133115 | I25: 133.8122237 | O25: 0.0003160949818 | P25: 2.106764031 | Q25: 1.812913962 | R25: 241 | S25: 295 | T25: 123 | U25: 40 | V25: 350
A26: MPC-Q | B26: 300 | C26: MPC-Q300160 | D26: 160 | F26: 2.953762251 | H26: =Auslegung!$D$32/(PI()/4*(D26/1000)^2*3600) -> 6.769611295 | I26: 81.21836668 | O26: 3.075515366e-05 | P26: 2.422115578 | Q26: 2.953762251 | R26: 241 | S26: 295 | T26: 158 | U26: 40 | V26: 350
A27: MPC-Q | B27: 300 | C27: MPC-Q300225 | D27: 225 | H27: =Auslegung!$D$32/(PI()/4*(D27/1000)^2*3600) -> 3.423250353 | I27: 0 | R27: 241 | S27: 295 | T27: 223 | U27: 40 | V27: 350
A28: MPC-Q | B28: 300 | C28: MPC-Q300250 | D28: 250 | H28: =Auslegung!$D$32/(PI()/4*(D28/1000)^2*3600) -> 2.772832786 | I28: 0 | R28: 241 | S28: 295 | T28: 248 | U28: 40 | V28: 350
A29: MPC-R | B29: 400 | C29: MPC-R-S400125 | D29: 125 | E29: ="-S" -> -S | H29: =Auslegung!$D$32/(PI()/4*(D29/1000)^2*3600) -> 11.09133115 | I29: 0
A30: MPC-R | B30: 400 | C30: MPC-R-S400160 | D30: 160 | E30: ="-S" -> -S | H30: =Auslegung!$D$32/(PI()/4*(D30/1000)^2*3600) -> 6.769611295 | I30: 0
A31: MPC-R | B31: 400 | C31: MPC-R-S400200 | D31: 200 | E31: ="-S" -> -S | H31: =Auslegung!$D$32/(PI()/4*(D31/1000)^2*3600) -> 4.332551229 | I31: 0
A32: MPC-R | B32: 400 | C32: MPC-R-S400225 | D32: 225 | E32: ="-S" -> -S | H32: =Auslegung!$D$32/(PI()/4*(D32/1000)^2*3600) -> 3.423250353 | I32: 0
A33: MPC-R | B33: 400 | C33: MPC-R-S400250 | D33: 250 | E33: ="-S" -> -S | H33: =Auslegung!$D$32/(PI()/4*(D33/1000)^2*3600) -> 2.772832786 | I33: 0
A34: MPC-R | B34: 400 | C34: MPC-R-M400125 | D34: 125 | E34: ="-M" -> -M | H34: =Auslegung!$D$32/(PI()/4*(D34/1000)^2*3600) -> 11.09133115 | I34: 0
A35: MPC-R | B35: 400 | C35: MPC-R-M400160 | D35: 160 | E35: ="-M" -> -M | H35: =Auslegung!$D$32/(PI()/4*(D35/1000)^2*3600) -> 6.769611295 | I35: 0
A36: MPC-R | B36: 400 | C36: MPC-R-M400200 | D36: 200 | E36: ="-M" -> -M | H36: =Auslegung!$D$32/(PI()/4*(D36/1000)^2*3600) -> 4.332551229 | I36: =F36*1.2/2*H36^2 -> 0
A37: MPC-R | B37: 400 | C37: MPC-R-M400225 | D37: 225 | E37: ="-M" -> -M | H37: =Auslegung!$D$32/(PI()/4*(D37/1000)^2*3600) -> 3.423250353 | I37: 0
A38: MPC-R | B38: 400 | C38: MPC-R-M400250 | D38: 250 | E38: ="-M" -> -M | H38: =Auslegung!$D$32/(PI()/4*(D38/1000)^2*3600) -> 2.772832786 | I38: 0
A39: MPC-R | B39: 400 | C39: MPC-R-L400125 | D39: 125 | E39: ="-L" -> -L | H39: =Auslegung!$D$32/(PI()/4*(D39/1000)^2*3600) -> 11.09133115 | I39: 0
A40: MPC-R | B40: 400 | C40: MPC-R-L400160 | D40: 160 | E40: ="-L" -> -L | H40: =Auslegung!$D$32/(PI()/4*(D40/1000)^2*3600) -> 6.769611295 | I40: 0
A41: MPC-R | B41: 400 | C41: MPC-R-L400200 | D41: 200 | E41: ="-L" -> -L | H41: =Auslegung!$D$32/(PI()/4*(D41/1000)^2*3600) -> 4.332551229 | I41: 0
A42: MPC-R | B42: 400 | C42: MPC-R-L400225 | D42: 225 | E42: ="-L" -> -L | H42: =Auslegung!$D$32/(PI()/4*(D42/1000)^2*3600) -> 3.423250353 | I42: 0
A43: MPC-R | B43: 400 | C43: MPC-R-L400250 | D43: 250 | E43: ="-L" -> -L | H43: =Auslegung!$D$32/(PI()/4*(D43/1000)^2*3600) -> 2.772832786 | I43: 0
A44: MPC-V | B44: 400 | C44: MPC-V400125 | D44: 125 | H44: =Auslegung!$D$32/(PI()/4*(D44/1000)^2*3600) -> 11.09133115 | I44: 0
A45: MPC-V | B45: 400 | C45: MPC-V400160 | D45: 160 | H45: =Auslegung!$D$32/(PI()/4*(D45/1000)^2*3600) -> 6.769611295 | I45: 0
A46: MPC-V | B46: 400 | C46: MPC-V400200 | D46: 200 | H46: =Auslegung!$D$32/(PI()/4*(D46/1000)^2*3600) -> 4.332551229 | I46: 0
A47: MPC-V | B47: 400 | C47: MPC-V400225 | D47: 225 | H47: =Auslegung!$D$32/(PI()/4*(D47/1000)^2*3600) -> 3.423250353 | I47: 0
A48: MPC-V | B48: 400 | C48: MPC-V400250 | D48: 250 | H48: =Auslegung!$D$32/(PI()/4*(D48/1000)^2*3600) -> 2.772832786 | I48: 0
A49: MPC-Q | B49: 400 | C49: MPC-Q400125 | D49: 125 | H49: =Auslegung!$D$32/(PI()/4*(D49/1000)^2*3600) -> 11.09133115 | I49: 0
A50: MPC-Q | B50: 400 | C50: MPC-Q400160 | D50: 160 | H50: =Auslegung!$D$32/(PI()/4*(D50/1000)^2*3600) -> 6.769611295 | I50: 0
A51: MPC-Q | B51: 400 | C51: MPC-Q400200 | D51: 200 | H51: =Auslegung!$D$32/(PI()/4*(D51/1000)^2*3600) -> 4.332551229 | I51: 0
A52: MPC-Q | B52: 400 | C52: MPC-Q400225 | D52: 225 | H52: =Auslegung!$D$32/(PI()/4*(D52/1000)^2*3600) -> 3.423250353 | I52: 0
A53: MPC-Q | B53: 400 | C53: MPC-Q400250 | D53: 250 | H53: =Auslegung!$D$32/(PI()/4*(D53/1000)^2*3600) -> 2.772832786 | I53: 0
A54: MPC-R | B54: 500 | C54: MPC-R-S500125 | D54: 125 | E54: ="-S" -> -S | H54: =Auslegung!$D$32/(PI()/4*(D54/1000)^2*3600) -> 11.09133115 | I54: 0
A55: MPC-R | B55: 500 | C55: MPC-R-S500160 | D55: 160 | E55: ="-S" -> -S | H55: =Auslegung!$D$32/(PI()/4*(D55/1000)^2*3600) -> 6.769611295 | I55: 0
A56: MPC-R | B56: 500 | C56: MPC-R-S500200 | D56: 200 | E56: ="-S" -> -S | H56: =Auslegung!$D$32/(PI()/4*(D56/1000)^2*3600) -> 4.332551229 | I56: 0
A57: MPC-R | B57: 500 | C57: MPC-R-S500225 | D57: 225 | E57: ="-S" -> -S | H57: =Auslegung!$D$32/(PI()/4*(D57/1000)^2*3600) -> 3.423250353 | I57: 0
A58: MPC-R | B58: 500 | C58: MPC-R-S500250 | D58: 250 | E58: ="-S" -> -S | H58: =Auslegung!$D$32/(PI()/4*(D58/1000)^2*3600) -> 2.772832786 | I58: 0
A59: MPC-R | B59: 500 | C59: MPC-R-M500125 | D59: 125 | E59: ="-M" -> -M | H59: =Auslegung!$D$32/(PI()/4*(D59/1000)^2*3600) -> 11.09133115 | I59: 0
A60: MPC-R | B60: 500 | C60: MPC-R-M500160 | D60: 160 | E60: ="-M" -> -M | H60: =Auslegung!$D$32/(PI()/4*(D60/1000)^2*3600) -> 6.769611295 | I60: 0
A61: MPC-R | B61: 500 | C61: MPC-R-M500200 | D61: 200 | E61: ="-M" -> -M | H61: =Auslegung!$D$32/(PI()/4*(D61/1000)^2*3600) -> 4.332551229 | I61: 0
A62: MPC-R | B62: 500 | C62: MPC-R-M500225 | D62: 225 | E62: ="-M" -> -M | H62: =Auslegung!$D$32/(PI()/4*(D62/1000)^2*3600) -> 3.423250353 | I62: 0
A63: MPC-R | B63: 500 | C63: MPC-R-M500250 | D63: 250 | E63: ="-M" -> -M | H63: =Auslegung!$D$32/(PI()/4*(D63/1000)^2*3600) -> 2.772832786 | I63: 0
A64: MPC-R | B64: 500 | C64: MPC-R-L500125 | D64: 125 | E64: ="-L" -> -L | H64: =Auslegung!$D$32/(PI()/4*(D64/1000)^2*3600) -> 11.09133115 | I64: 0
A65: MPC-R | B65: 500 | C65: MPC-R-L500160 | D65: 160 | E65: ="-L" -> -L | H65: =Auslegung!$D$32/(PI()/4*(D65/1000)^2*3600) -> 6.769611295 | I65: 0
A66: MPC-R | B66: 500 | C66: MPC-R-L500200 | D66: 200 | E66: ="-L" -> -L | H66: =Auslegung!$D$32/(PI()/4*(D66/1000)^2*3600) -> 4.332551229 | I66: 0
A67: MPC-R | B67: 500 | C67: MPC-R-L500225 | D67: 225 | E67: ="-L" -> -L | H67: =Auslegung!$D$32/(PI()/4*(D67/1000)^2*3600) -> 3.423250353 | I67: 0
A68: MPC-R | B68: 500 | C68: MPC-R-L500250 | D68: 250 | E68: ="-L" -> -L | H68: =Auslegung!$D$32/(PI()/4*(D68/1000)^2*3600) -> 2.772832786 | I68: =F68*1.2/2*H68^2 -> 0
A69: MPC-V | B69: 500 | C69: =CONCATENATE(A69,E69,B69,D69) -> MPC-V500125 | D69: 125 | H69: =Auslegung!$D$32/(PI()/4*(D69/1000)^2*3600) -> 11.09133115 | I69: 0
A70: MPC-V | B70: 500 | C70: MPC-V500160 | D70: 160 | H70: =Auslegung!$D$32/(PI()/4*(D70/1000)^2*3600) -> 6.769611295 | I70: 0
A71: MPC-V | B71: 500 | C71: MPC-V500200 | D71: 200 | H71: =Auslegung!$D$32/(PI()/4*(D71/1000)^2*3600) -> 4.332551229 | I71: 0
A72: MPC-V | B72: 500 | C72: MPC-V500225 | D72: 225 | H72: =Auslegung!$D$32/(PI()/4*(D72/1000)^2*3600) -> 3.423250353 | I72: 0
A73: MPC-V | B73: 500 | C73: MPC-V500250 | D73: 250 | H73: =Auslegung!$D$32/(PI()/4*(D73/1000)^2*3600) -> 2.772832786 | I73: 0
A74: MPC-Q | B74: 500 | C74: MPC-Q500125 | D74: 125 | H74: =Auslegung!$D$32/(PI()/4*(D74/1000)^2*3600) -> 11.09133115 | I74: 0
A75: MPC-Q | B75: 500 | C75: MPC-Q500160 | D75: 160 | H75: =Auslegung!$D$32/(PI()/4*(D75/1000)^2*3600) -> 6.769611295 | I75: 0
A76: MPC-Q | B76: 500 | C76: MPC-Q500200 | D76: 200 | H76: =Auslegung!$D$32/(PI()/4*(D76/1000)^2*3600) -> 4.332551229 | I76: 0
A77: MPC-Q | B77: 500 | C77: MPC-Q500225 | D77: 225 | H77: =Auslegung!$D$32/(PI()/4*(D77/1000)^2*3600) -> 3.423250353 | I77: 0
A78: MPC-Q | B78: 500 | C78: MPC-Q500250 | D78: 250 | H78: =Auslegung!$D$32/(PI()/4*(D78/1000)^2*3600) -> 2.772832786 | I78: 0
A79: MPC-R | B79: 600 | C79: MPC-R-S600125 | D79: 125 | E79: ="-S" -> -S | F79: 2.156457659 | H79: =Auslegung!$D$32/(PI()/4*(D79/1000)^2*3600) -> 11.09133115 | I79: 159.1693818 | J79: 0.0007596254601 | K79: 0.910976123 | L79: 0.0006175704974 | M79: 0.3934951057 | N79: 1.510168118 | R79: 300 | S79: 595 | T79: 123 | U79: 100 | V79: 350
A80: MPC-R | B80: 600 | C80: MPC-R-S600160 | D80: 160 | E80: ="-S" -> -S | F80: 2.710096997 | H80: =Auslegung!$D$32/(PI()/4*(D80/1000)^2*3600) -> 6.769611295 | I80: 74.51840497 | J80: 0.0007596254601 | K80: 0.910976123 | L80: 0.0006175704974 | M80: 0.3934951057 | N80: 1.510168118 | R80: 300 | S80: 595 | T80: 158 | U80: 100 | V80: 350
A81: MPC-R | B81: 600 | C81: MPC-R-S600200 | D81: 200 | E81: ="-S" -> -S | F81: 3.498932099 | H81: =Auslegung!$D$32/(PI()/4*(D81/1000)^2*3600) -> 4.332551229 | I81: 39.40707297 | J81: 0.0007596254601 | K81: 0.910976123 | L81: 0.0006175704974 | M81: 0.3934951057 | N81: 1.510168118 | R81: 300 | S81: 595 | T81: 198 | U81: 100 | V81: 350
A82: MPC-R | B82: 600 | C82: MPC-R-S600225 | D82: 225 | E82: ="-S" -> -S | F82: 11.47485847 | H82: =Auslegung!$D$32/(PI()/4*(D82/1000)^2*3600) -> 3.423250353 | I82: 80.68186183 | J82: 0.0007596254601 | K82: 0.910976123 | L82: 0.0006175704974 | M82: 0.3934951057 | N82: 1.510168118 | R82: 300 | S82: 595 | T82: 223 | U82: 100 | V82: 350
A83: MPC-R | B83: 600 | C83: MPC-R-S600250 | D83: 250 | E83: ="-S" -> -S | F83: 11.47485847 | H83: =Auslegung!$D$32/(PI()/4*(D83/1000)^2*3600) -> 2.772832786 | I83: 52.93536955 | J83: 0.0007596254601 | K83: 0.910976123 | L83: 0.0006175704974 | M83: 0.3934951057 | N83: 1.510168118 | R83: 300 | S83: 595 | T83: 248 | U83: 100 | V83: 350
A84: MPC-R | B84: 600 | C84: MPC-R-M600125 | D84: 125 | E84: ="-M" -> -M | F84: 2.014658698 | H84: =Auslegung!$D$32/(PI()/4*(D84/1000)^2*3600) -> 11.09133115 | I84: 148.7031189 | J84: 0.0006606235138 | K84: 0.9365341152 | L84: 6.645486778e-05 | M84: 0.4720107161 | N84: 1.814530048 | R84: 300 | S84: 595 | T84: 123 | U84: 200 | V84: 450
A85: MPC-R | B85: 600 | C85: MPC-R-M600160 | D85: 160 | E85: ="-M" -> -M | F85: 2.04851093 | H85: =Auslegung!$D$32/(PI()/4*(D85/1000)^2*3600) -> 6.769611295 | I85: 56.32704927 | J85: 0.0006606235138 | K85: 0.9365341152 | L85: 6.645486778e-05 | M85: 0.4720107161 | N85: 1.814530048 | R85: 300 | S85: 595 | T85: 158 | U85: 200 | V85: 450
A86: MPC-R | B86: 600 | C86: MPC-R-M600200 | D86: 200 | E86: ="-M" -> -M | F86: 3.474593652 | H86: =Auslegung!$D$32/(PI()/4*(D86/1000)^2*3600) -> 4.332551229 | I86: 39.13295877 | J86: 0.0006606235138 | K86: 0.9365341152 | L86: 6.645486778e-05 | M86: 0.4720107161 | N86: 1.814530048 | R86: 300 | S86: 595 | T86: 198 | U86: 200 | V86: 450
A87: MPC-R | B87: 600 | C87: MPC-R-M600225 | D87: 225 | E87: ="-M" -> -M | F87: 7.964241301 | H87: =Auslegung!$D$32/(PI()/4*(D87/1000)^2*3600) -> 3.423250353 | I87: 55.99806026 | J87: 0.0006606235138 | K87: 0.9365341152 | L87: 6.645486778e-05 | M87: 0.4720107161 | N87: 1.814530048 | R87: 300 | S87: 595 | T87: 223 | U87: 200 | V87: 450
A88: MPC-R | B88: 600 | C88: MPC-R-M600250 | D88: 250 | E88: ="-M" -> -M | F88: 7.964241301 | H88: =Auslegung!$D$32/(PI()/4*(D88/1000)^2*3600) -> 2.772832786 | I88: 36.74032734 | J88: 0.0006606235138 | K88: 0.9365341152 | L88: 6.645486778e-05 | M88: 0.4720107161 | N88: 1.814530048 | R88: 300 | S88: 595 | T88: 248 | U88: 200 | V88: 450
A89: MPC-R | B89: 600 | C89: MPC-R-L600125 | D89: 125 | E89: ="-L" -> -L | F89: 1.899131284 | H89: =Auslegung!$D$32/(PI()/4*(D89/1000)^2*3600) -> 11.09133115 | I89: 140.1759739 | J89: 0.0008688084441 | K89: 1.128107476 | L89: 5.348218998e-06 | M89: 0.4336209008 | N89: 2.194468394 | R89: 300 | S89: 595 | T89: 123 | U89: 300 | V89: 550
A90: MPC-R | B90: 600 | C90: MPC-R-L600160 | D90: 160 | E90: ="-L" -> -L | F90: 2.072875173 | H90: =Auslegung!$D$32/(PI()/4*(D90/1000)^2*3600) -> 6.769611295 | I90: 56.99698269 | J90: 0.0008688084441 | K90: 1.128107476 | L90: 5.348218998e-06 | M90: 0.4336209008 | N90: 2.194468394 | R90: 300 | S90: 595 | T90: 158 | U90: 300 | V90: 550
A91: MPC-R | B91: 600 | C91: MPC-R-L600200 | D91: 200 | E91: ="-L" -> -L | F91: 3.453936727 | H91: =Auslegung!$D$32/(PI()/4*(D91/1000)^2*3600) -> 4.332551229 | I91: 38.90030809 | J91: 0.0008688084441 | K91: 1.128107476 | L91: 5.348218998e-06 | M91: 0.4336209008 | N91: 2.194468394 | R91: 300 | S91: 595 | T91: 198 | U91: 300 | V91: 550
A92: MPC-R | B92: 600 | C92: MPC-R-L600225 | D92: 225 | E92: ="-L" -> -L | F92: 5.395202971 | H92: =Auslegung!$D$32/(PI()/4*(D92/1000)^2*3600) -> 3.423250353 | I92: 37.93467446 | J92: 0.0008688084441 | K92: 1.128107476 | L92: 5.348218998e-06 | M92: 0.4336209008 | N92: 2.194468394 | R92: 300 | S92: 595 | T92: 223 | U92: 300 | V92: 550
A93: MPC-R | B93: 600 | C93: MPC-R-L600250 | D93: 250 | E93: ="-L" -> -L | F93: 5.395202971 | H93: =Auslegung!$D$32/(PI()/4*(D93/1000)^2*3600) -> 2.772832786 | I93: 24.88893992 | J93: 0.0008688084441 | K93: 1.128107476 | L93: 5.348218998e-06 | M93: 0.4336209008 | N93: 2.194468394 | R93: 300 | S93: 595 | T93: 248 | U93: 300 | V93: 550
A94: MPC-V | B94: 600 | C94: MPC-V600125 | D94: 125 | F94: 1.792196982 | H94: =Auslegung!$D$32/(PI()/4*(D94/1000)^2*3600) -> 11.09133115 | I94: 132.2830915 | R94: 300 | S94: 595 | T94: 123 | U94: 200 | V94: 450
A95: MPC-V | B95: 600 | C95: MPC-V600160 | D95: 160 | F95: 2.00304575 | H95: =Auslegung!$D$32/(PI()/4*(D95/1000)^2*3600) -> 6.769611295 | I95: 55.0769122 | R95: 300 | S95: 595 | T95: 158 | U95: 200 | V95: 450
A96: MPC-V | B96: 600 | C96: MPC-V600200 | D96: 200 | F96: 3.474593652 | H96: =Auslegung!$D$32/(PI()/4*(D96/1000)^2*3600) -> 4.332551229 | I96: 39.13295877 | R96: 300 | S96: 595 | T96: 198 | U96: 200 | V96: 450
A97: MPC-V | B97: 600 | C97: MPC-V600225 | D97: 225 | F97: 5.850505954 | H97: =Auslegung!$D$32/(PI()/4*(D97/1000)^2*3600) -> 3.423250353 | I97: 41.13599432 | R97: 300 | S97: 595 | T97: 223 | U97: 200 | V97: 450
A98: MPC-V | B98: 600 | C98: MPC-V600250 | D98: 250 | F98: 5.850505954 | H98: =Auslegung!$D$32/(PI()/4*(D98/1000)^2*3600) -> 2.772832786 | I98: 26.98932587 | R98: 300 | S98: 595 | T98: 248 | U98: 200 | V98: 450
A99: MPC-Q | B99: 600 | C99: MPC-Q600125 | D99: 125 | F99: 1.570283993 | H99: =Auslegung!$D$32/(PI()/4*(D99/1000)^2*3600) -> 11.09133115 | I99: 115.903566 | O99: 0.0005746167581 | P99: 1.969246582 | Q99: 1.570283993 | R99: 300 | S99: 595 | T99: 123 | U99: 200 | V99: 700
A100: MPC-Q | B100: 600 | C100: MPC-Q600160 | D100: 160 | F100: 1.414732484 | H100: =Auslegung!$D$32/(PI()/4*(D100/1000)^2*3600) -> 6.769611295 | I100: =F100*1.2/2*H100^2 -> 38.90030809 | O100: 0.0002075291945 | P100: 1.958267509 | Q100: 1.414732484 | R100: 300 | S100: 595 | T100: 158 | U100: 200 | V100: 700
A101: MPC-Q | B101: 600 | C101: MPC-Q600200 | D101: 200 | F101: 3.396318755 | H101: =Auslegung!$D$32/(PI()/4*(D101/1000)^2*3600) -> 4.332551229 | I101: 38.25137991 | O101: 0.0002080480279 | P101: 1.95803429 | Q101: 3.396318755 | R101: 300 | S101: 595 | T101: 198 | U101: 200 | V101: 700
A102: MPC-Q | B102: 600 | C102: MPC-Q600225 | D102: 225 | F102: 2.582141796 | H102: =Auslegung!$D$32/(PI()/4*(D102/1000)^2*3600) -> 3.423250353 | I102: 18.15551871 | O102: 7.422459907e-05 | P102: 1.938123268 | Q102: 2.582141796 | R102: 300 | S102: 595 | T102: 223 | U102: 200 | V102: 700
A103: MPC-Q | B103: 600 | C103: MPC-Q600250 | D103: 250 | F103: 2.582141796 | H103: =Auslegung!$D$32/(PI()/4*(D103/1000)^2*3600) -> 2.772832786 | I103: 11.91183582 | O103: 7.422459907e-05 | P103: 1.938123268 | Q103: 2.582141796 | R103: 300 | S103: 595 | T103: 248 | U103: 200 | V103: 700
A104: MPC-R | B104: 625 | C104: MPC-R-S625125 | D104: 125 | E104: ="-S" -> -S | F104: 2.156457659 | H104: =Auslegung!$D$32/(PI()/4*(D104/1000)^2*3600) -> 11.09133115 | I104: 159.1693818 | J104: 0.0007596254601 | K104: 0.910976123 | L104: 0.0006175704974 | M104: 0.3934951057 | N104: 1.510168118 | R104: 300 | S104: 620 | T104: 123 | U104: 100 | V104: 350
A105: MPC-R | B105: 625 | C105: MPC-R-S625160 | D105: 160 | E105: ="-S" -> -S | F105: 2.710096997 | H105: =Auslegung!$D$32/(PI()/4*(D105/1000)^2*3600) -> 6.769611295 | I105: 74.51840497 | J105: 0.0007596254601 | K105: 0.910976123 | L105: 0.0006175704974 | M105: 0.3934951057 | N105: 1.510168118 | R105: 300 | S105: 620 | T105: 158 | U105: 100 | V105: 350
A106: MPC-R | B106: 625 | C106: MPC-R-S625200 | D106: 200 | E106: ="-S" -> -S | F106: 3.498932099 | H106: =Auslegung!$D$32/(PI()/4*(D106/1000)^2*3600) -> 4.332551229 | I106: 39.40707297 | J106: 0.0007596254601 | K106: 0.910976123 | L106: 0.0006175704974 | M106: 0.3934951057 | N106: 1.510168118 | R106: 300 | S106: 620 | T106: 198 | U106: 100 | V106: 350
A107: MPC-R | B107: 625 | C107: MPC-R-S625225 | D107: 225 | E107: ="-S" -> -S | F107: 11.47485847 | H107: =Auslegung!$D$32/(PI()/4*(D107/1000)^2*3600) -> 3.423250353 | I107: 80.68186183 | J107: 0.0007596254601 | K107: 0.910976123 | L107: 0.0006175704974 | M107: 0.3934951057 | N107: 1.510168118 | R107: 300 | S107: 620 | T107: 223 | U107: 100 | V107: 350
A108: MPC-R | B108: 625 | C108: MPC-R-S625250 | D108: 250 | E108: ="-S" -> -S | F108: 11.47485847 | H108: =Auslegung!$D$32/(PI()/4*(D108/1000)^2*3600) -> 2.772832786 | I108: 52.93536955 | J108: 0.0007596254601 | K108: 0.910976123 | L108: 0.0006175704974 | M108: 0.3934951057 | N108: 1.510168118 | R108: 300 | S108: 620 | T108: 248 | U108: 100 | V108: 350
A109: MPC-R | B109: 625 | C109: MPC-R-M625125 | D109: 125 | E109: ="-M" -> -M | F109: 2.014658698 | H109: =Auslegung!$D$32/(PI()/4*(D109/1000)^2*3600) -> 11.09133115 | I109: 148.7031189 | J109: 0.0006606235138 | K109: 0.9365341152 | L109: 6.645486778e-05 | M109: 0.4720107161 | N109: 1.814530048 | R109: 300 | S109: 620 | T109: 123 | U109: 200 | V109: 450
A110: MPC-R | B110: 625 | C110: MPC-R-M625160 | D110: 160 | E110: ="-M" -> -M | F110: 2.04851093 | H110: =Auslegung!$D$32/(PI()/4*(D110/1000)^2*3600) -> 6.769611295 | I110: 56.32704927 | J110: 0.0006606235138 | K110: 0.9365341152 | L110: 6.645486778e-05 | M110: 0.4720107161 | N110: 1.814530048 | R110: 300 | S110: 620 | T110: 158 | U110: 200 | V110: 450
A111: MPC-R | B111: 625 | C111: MPC-R-M625200 | D111: 200 | E111: ="-M" -> -M | F111: 3.474593652 | H111: =Auslegung!$D$32/(PI()/4*(D111/1000)^2*3600) -> 4.332551229 | I111: 39.13295877 | J111: 0.0006606235138 | K111: 0.9365341152 | L111: 6.645486778e-05 | M111: 0.4720107161 | N111: 1.814530048 | R111: 300 | S111: 620 | T111: 198 | U111: 200 | V111: 450
A112: MPC-R | B112: 625 | C112: MPC-R-M625225 | D112: 225 | E112: ="-M" -> -M | F112: 7.964241301 | H112: =Auslegung!$D$32/(PI()/4*(D112/1000)^2*3600) -> 3.423250353 | I112: 55.99806026 | J112: 0.0006606235138 | K112: 0.9365341152 | L112: 6.645486778e-05 | M112: 0.4720107161 | N112: 1.814530048 | R112: 300 | S112: 620 | T112: 223 | U112: 200 | V112: 450
A113: MPC-R | B113: 625 | C113: MPC-R-M625250 | D113: 250 | E113: ="-M" -> -M | F113: 7.964241301 | H113: =Auslegung!$D$32/(PI()/4*(D113/1000)^2*3600) -> 2.772832786 | I113: 36.74032734 | J113: 0.0006606235138 | K113: 0.9365341152 | L113: 6.645486778e-05 | M113: 0.4720107161 | N113: 1.814530048 | R113: 300 | S113: 620 | T113: 248 | U113: 200 | V113: 450
A114: MPC-R | B114: 625 | C114: MPC-R-L625125 | D114: 125 | E114: ="-L" -> -L | F114: 1.899131284 | H114: =Auslegung!$D$32/(PI()/4*(D114/1000)^2*3600) -> 11.09133115 | I114: 140.1759739 | J114: 0.0008688084441 | K114: 1.128107476 | L114: 5.348218998e-06 | M114: 0.4336209008 | N114: 2.194468394 | R114: 300 | S114: 620 | T114: 123 | U114: 300 | V114: 550
A115: MPC-R | B115: 625 | C115: MPC-R-L625160 | D115: 160 | E115: ="-L" -> -L | F115: 2.072875173 | H115: =Auslegung!$D$32/(PI()/4*(D115/1000)^2*3600) -> 6.769611295 | I115: 56.99698269 | J115: 0.0008688084441 | K115: 1.128107476 | L115: 5.348218998e-06 | M115: 0.4336209008 | N115: 2.194468394 | R115: 300 | S115: 620 | T115: 158 | U115: 300 | V115: 550
A116: MPC-R | B116: 625 | C116: MPC-R-L625200 | D116: 200 | E116: ="-L" -> -L | F116: 3.453936727 | H116: =Auslegung!$D$32/(PI()/4*(D116/1000)^2*3600) -> 4.332551229 | I116: 38.90030809 | J116: 0.0008688084441 | K116: 1.128107476 | L116: 5.348218998e-06 | M116: 0.4336209008 | N116: 2.194468394 | R116: 300 | S116: 620 | T116: 198 | U116: 300 | V116: 550
A117: MPC-R | B117: 625 | C117: MPC-R-L625225 | D117: 225 | E117: ="-L" -> -L | F117: 5.395202971 | H117: =Auslegung!$D$32/(PI()/4*(D117/1000)^2*3600) -> 3.423250353 | I117: 37.93467446 | J117: 0.0008688084441 | K117: 1.128107476 | L117: 5.348218998e-06 | M117: 0.4336209008 | N117: 2.194468394 | R117: 300 | S117: 620 | T117: 223 | U117: 300 | V117: 550
A118: MPC-R | B118: 625 | C118: MPC-R-L625250 | D118: 250 | E118: ="-L" -> -L | F118: 5.395202971 | H118: =Auslegung!$D$32/(PI()/4*(D118/1000)^2*3600) -> 2.772832786 | I118: 24.88893992 | J118: 0.0008688084441 | K118: 1.128107476 | L118: 5.348218998e-06 | M118: 0.4336209008 | N118: 2.194468394 | R118: 300 | S118: 620 | T118: 248 | U118: 300 | V118: 550
A119: MPC-V | B119: 625 | C119: MPC-V625125 | D119: 125 | F119: 1.792196982 | H119: =Auslegung!$D$32/(PI()/4*(D119/1000)^2*3600) -> 11.09133115 | I119: 132.2830915 | R119: 300 | S119: 620 | T119: 123 | U119: 200 | V119: 450
A120: MPC-V | B120: 625 | C120: MPC-V625160 | D120: 160 | F120: 2.00304575 | H120: =Auslegung!$D$32/(PI()/4*(D120/1000)^2*3600) -> 6.769611295 | I120: 55.0769122 | R120: 300 | S120: 620 | T120: 158 | U120: 200 | V120: 450
A121: MPC-V | B121: 625 | C121: MPC-V625200 | D121: 200 | F121: 3.474593652 | H121: =Auslegung!$D$32/(PI()/4*(D121/1000)^2*3600) -> 4.332551229 | I121: 39.13295877 | R121: 300 | S121: 620 | T121: 198 | U121: 200 | V121: 450
A122: MPC-V | B122: 625 | C122: MPC-V625225 | D122: 225 | F122: 5.850505954 | H122: =Auslegung!$D$32/(PI()/4*(D122/1000)^2*3600) -> 3.423250353 | I122: 41.13599432 | R122: 300 | S122: 620 | T122: 223 | U122: 200 | V122: 450
A123: MPC-V | B123: 625 | C123: MPC-V625250 | D123: 250 | F123: 5.850505954 | H123: =Auslegung!$D$32/(PI()/4*(D123/1000)^2*3600) -> 2.772832786 | I123: 26.98932587 | R123: 300 | S123: 620 | T123: 248 | U123: 200 | V123: 450
A124: MPC-Q | B124: 625 | C124: MPC-Q625125 | D124: 125 | F124: 1.570283993 | H124: =Auslegung!$D$32/(PI()/4*(D124/1000)^2*3600) -> 11.09133115 | I124: 115.903566 | O124: 0.0005746167581 | P124: 1.969246582 | Q124: 1.570283993 | R124: 300 | S124: 620 | T124: 123 | U124: 200 | V124: 700
A125: MPC-Q | B125: 625 | C125: MPC-Q625160 | D125: 160 | F125: 1.414732484 | H125: =Auslegung!$D$32/(PI()/4*(D125/1000)^2*3600) -> 6.769611295 | I125: 38.90030809 | O125: 0.0002075291945 | P125: 1.958267509 | Q125: 1.414732484 | R125: 300 | S125: 620 | T125: 158 | U125: 200 | V125: 700
A126: MPC-Q | B126: 625 | C126: MPC-Q625200 | D126: 200 | F126: 3.396318755 | H126: =Auslegung!$D$32/(PI()/4*(D126/1000)^2*3600) -> 4.332551229 | I126: 38.25137991 | O126: 0.0002080480279 | P126: 1.95803429 | Q126: 3.396318755 | R126: 300 | S126: 620 | T126: 198 | U126: 200 | V126: 700
A127: MPC-Q | B127: 625 | C127: MPC-Q625225 | D127: 225 | F127: 2.582141796 | H127: =Auslegung!$D$32/(PI()/4*(D127/1000)^2*3600) -> 3.423250353 | I127: 18.15551871 | O127: 7.422459907e-05 | P127: 1.938123268 | Q127: 2.582141796 | R127: 300 | S127: 620 | T127: 223 | U127: 200 | V127: 700
A128: MPC-Q | B128: 625 | C128: MPC-Q625250 | D128: 250 | F128: 2.582141796 | H128: =Auslegung!$D$32/(PI()/4*(D128/1000)^2*3600) -> 2.772832786 | I128: 11.91183582 | O128: 7.422459907e-05 | P128: 1.938123268 | Q128: 2.582141796 | R128: 300 | S128: 620 | T128: 248 | U128: 200 | V128: 700
A130: Spaltenindex | B130: 1 | C130: 1 | D130: 2 | E130: 3 | F130: 4 | G130: 5 | H130: 6 | I130: 7 | J130: 8 | K130: 9 | L130: 10 | M130: 11 | N130: 12 | O130: 13 | P130: 14 | Q130: 15 | R130: 16 | S130: 17 | T130: 18 | U130: 19 | V130: 20 | W130: 21
A133: GRÜN hinterlegte Zellen: | C133: Ausgleichsrechnung beruhend auf Messungen
A134: GELB hinterlegte Zellen: | C134: Werte beruhen auf Anschauung
A135: DURCHGESTRICHENE Zellen: | C135: Durchlass nicht geplant oder nicht vorhanden
A136: Stand: | B136: 2020-10-30
B138: Übergabe: | C138: Volumenstrom für Druckverlustberechnung | F138: =Auslegung!$D$32 -> 490
C139: "Pfuschzelle" für Auswahl DN 625: | F139: =Auslegung!D18 -> 600
A141: Auswahl: | B141: Zuluft | C141: =CONCATENATE(Auslegung!$D$12,$F$139,Auslegung!$D$25) -> MPC-R-M600250 | D141: =VLOOKUP($C$141,$C$4:$I$128,D130,FALSE) -> 250 | E141: =VLOOKUP($C$141,$C$4:$I$128,E130,FALSE) -> -M | F141: =VLOOKUP($C$141,$C$4:$Q$128,F130,FALSE) -> 7.964241301 | G141: =VLOOKUP($C$141,$C$4:$Q$128,G130,FALSE) -> 0 | H141: =VLOOKUP($C$141,$C$4:$Q$128,H130,FALSE) -> 2.772832786 | I141: 36.74032734 | J141: =VLOOKUP($C$141,$C$4:$W$128,J130,FALSE) -> 0.0006606235138 | K141: =VLOOKUP($C$141,$C$4:$W$128,K130,FALSE) -> 0.9365341152 | L141: 6.645486778e-05 | M141: 0.4720107161 | N141: 1.814530048 | O141: 0 | P141: 0 | Q141: 0 | R141: 300 | S141: 595 | T141: 248 | U141: =VLOOKUP($C$141,$C$4:$W$128,U130,FALSE) -> 200 | V141: 450 | W141: 0
B142: Abluft | C142: =CONCATENATE("MPC-Q",$F$139,Auslegung!$D$25) -> MPC-Q600250 | D142: =VLOOKUP($C$142,$C$4:$I$128,2,FALSE) -> 250 | E142: =VLOOKUP($C$142,$C$4:$I$128,E130,FALSE) -> 0 | F142: =VLOOKUP($C$142,$C$4:$I$128,F130,FALSE) -> 2.582141796 | G142: =VLOOKUP($C$142,$C$4:$I$128,G130,FALSE) -> 0 | H142: =VLOOKUP($C$142,$C$4:$I$128,H130,FALSE) -> 2.772832786 | I142: 11.91183582 | J142: =VLOOKUP($C$142,$C$4:$W$128,J130,FALSE) -> 0 | K142: =VLOOKUP($C$142,$C$4:$W$128,K130,FALSE) -> 0 | L142: 0 | M142: 0 | N142: 0 | O142: 7.422459907e-05 | P142: 1.938123268 | Q142: 2.582141796 | R142: 300 | S142: 595 | T142: 248 | U142: 200 | V142: 700 | W142: 0

Sheet Lw (hidden)
D2: Terzfrequenzband fm [Hz]
D3: 100 | E3: 125 | F3: 160 | G3: 200 | H3: 250 | I3: 315 | J3: 400 | K3: 500 | L3: 630 | M3: 800 | N3: 1000 | O3: 1250 | P3: 1600 | Q3: 2000 | R3: 2500 | S3: 3150 | T3: 4000 | U3: 5000 | V3: 6300 | W3: 8000 | X3: 10000
A4: MPC-Q300100 | B4: k1 | C4: =CONCATENATE(A4,B4) -> MPC-Q300100k1 | D4: -22.73360548 | E4: -18.30484425 | F4: -20.54598274 | G4: -25.27182422 | H4: -33.26705112 | I4: -31.07507521 | J4: -30.80728063 | K4: -29.89614114 | L4: -33.24955394 | M4: -33.00288097 | N4: -36.82577456 | O4: -41.41004243 | P4: -45.47552415 | Q4: -48.26481274 | R4: -47.54486823 | S4: -45.86606295 | T4: -39.64192378 | U4: -27.23531307 | V4: -13.85852522 | W4: -3.03066754 | X4: 4.529874718
A5: MPC-Q300100 | B5: k2 | C5: MPC-Q300100k2 | D5: 4.149453095 | E5: 4.964386722 | F5: 4.936683335 | G5: 5.353349003 | H5: 7.953140258 | I5: 7.872323036 | J5: 6.873962156 | K5: 6.172270081 | L5: 5.914058954 | M5: 7.981041299 | N5: 8.27628013 | O5: 7.955352814 | P5: 7.802107967 | Q5: 7.473998868 | R5: 7.285668004 | S5: 7.159445392 | T5: 6.772213991 | U5: 6.297154637 | V5: 5.976053968 | W5: 5.79174181 | X5: 5.864113427 | Y5: Messdatum: | Z5: 2012-10-02
A6: MPC-Q300100 | B6: k3 | C6: MPC-Q300100k3 | D6: 38.59712973 | E6: 32.98447427 | F6: 36.20950848 | G6: 43.48529252 | H6: 57.68997489 | I6: 54.42773955 | J6: 53.04041596 | K6: 51.01610602 | L6: 55.62490522 | M6: 57.3344713 | N6: 63.1782744 | O6: 69.5107704 | P6: 75.25805233 | Q6: 78.97817823 | R6: 77.7448717 | S6: 75.1820184 | T6: 65.76107711 | U6: 47.27914991 | V6: 27.54314164 | W6: 11.64344258 | X6: 0.7425347787
A7: MPC-Q300100 | B7: k4 | C7: MPC-Q300100k4 | D7: -3.173821213 | E7: -2.3949629 | F7: -2.789095817 | G7: -3.620190509 | H7: -5.026234606 | I7: -4.640748557 | J7: -4.593659737 | K7: -4.433429491 | L7: -5.023170656 | M7: -4.979776381 | N7: -5.652078301 | O7: -6.458280151 | P7: -7.173247823 | Q7: -7.663781765 | R7: -7.537171173 | S7: -7.241931699 | T7: -6.147342521 | U7: -3.965488445 | V7: -1.613017287 | W7: 0.2911938225 | X7: 1.620817661
A8: MPC-Q300125 | B8: k1 | C8: MPC-Q300125k1 | D8: -5.221321348 | E8: -10.47148141 | F8: -15.61587871 | G8: -20.78880644 | H8: -21.60417053 | I8: -23.57038182 | J8: -26.63361367 | K8: -29.22048633 | L8: -31.84594599 | M8: -32.10477027 | N8: -35.22826684 | O8: -37.19190424 | P8: -39.16070419 | Q8: -39.52032458 | R8: -38.57992055 | S8: -35.6924207 | T8: -29.8837943 | U8: -19.9564204 | V8: -8.849163189 | W8: -0.2254000838 | X8: 5.175974984
A9: MPC-Q300125 | B9: k2 | C9: MPC-Q300125k2 | D9: 3.479727284 | E9: 4.01849401 | F9: 4.128312176 | G9: 4.386908861 | H9: 6.730438458 | I9: 7.133567435 | J9: 6.2962228 | K9: 5.667841127 | L9: 5.569619167 | M9: 6.908547251 | N9: 7.046866843 | O9: 6.782474184 | P9: 6.667331111 | Q9: 6.304375425 | R9: 6.249569735 | S9: 6.088960587 | T9: 5.841794733 | U9: 5.543648544 | V9: 5.389226776 | W9: 5.385291413 | X9: 5.59253902 | Y9: Messdatum: | Z9: 2012-10-02
A10: MPC-Q300125 | B10: k3 | C10: MPC-Q300125k3 | D10: 13.71595173 | E10: 22.89245709 | F10: 31.46590413 | G10: 40.23511215 | H10: 43.92069376 | I10: 47.55874969 | J10: 51.76083831 | K10: 55.3882443 | L10: 59.60943509 | M10: 61.37451579 | N10: 66.6516769 | O10: 69.61780909 | P10: 72.7417361 | Q10: 72.97034148 | R10: 71.36834554 | S10: 66.45716096 | T10: 56.65352423 | U10: 40.02270098 | V10: 21.59451024 | W10: 7.402717102 | X10: -1.276446483
A11: MPC-Q300125 | B11: k4 | C11: MPC-Q300125k4 | D11: -0.6074165985 | E11: -1.963929035 | F11: -3.293118215 | G11: -4.629678991 | H11: -4.840333546 | I11: -5.348352667 | J11: -6.139824128 | K11: -6.808215762 | L11: -7.486573288 | M11: -7.553437738 | N11: -8.360474094 | O11: -8.867832954 | P11: -9.376527481 | Q11: -9.469446973 | R11: -9.226467864 | S11: -8.480407894 | T11: -6.979598147 | U11: -4.414601637 | V11: -1.544752517 | W11: 0.6834188771 | X11: 2.079017763
A12: MPC-Q300160 | B12: k1 | C12: MPC-Q300160k1 | D12: -12.0142765 | E12: -11.4494244 | F12: -13.88262257 | G12: -19.05507519 | H12: -20.57186659 | I12: -23.0500517 | J12: -25.070874 | K12: -25.57219217 | L12: -24.29323567 | M12: -27.68569734 | N12: -30.46194322 | O12: -32.30309182 | P12: -34.3534482 | Q12: -34.91948053 | R12: -34.76378677 | S12: -32.35348356 | T12: -26.78400333 | U12: -18.75815578 | V12: -9.882192018 | W12: -1.958124345 | X12: 3.432918226
A13: MPC-Q300160 | B13: k2 | C13: MPC-Q300160k2 | D13: 3.665394887 | E13: 4.292837384 | F13: 4.440987878 | G13: 4.984397964 | H13: 6.850138488 | I13: 6.497060063 | J13: 6.643598396 | K13: 6.238348244 | L13: 6.205750045 | M13: 7.049226205 | N13: 7.512377232 | O13: 7.481811723 | P13: 7.38618413 | Q13: 7.252185412 | R13: 7.163035043 | S13: 6.945193621 | T13: 6.516087913 | U13: 6.022688116 | V13: 5.59197861 | W13: 5.258430366 | X13: 5.190464137 | Y13: Messdatum: | Z13: 2012-10-04
A14: MPC-Q300160 | B14: k3 | C14: MPC-Q300160k3 | D14: 27.86794023 | E14: 27.44514076 | F14: 32.11815545 | G14: 42.28051417 | H14: 46.96740758 | I14: 51.22272341 | J14: 55.12726915 | K14: 55.6541684 | L14: 53.24318568 | M14: 60.39558661 | N14: 66.02162361 | O14: 69.41488429 | P14: 73.13213056 | Q14: 74.05069781 | R14: 73.6719929 | S14: 68.97184647 | T14: 58.18549003 | U14: 42.76692303 | V14: 25.83019143 | W14: 10.76085659 | X14: 0.6675376031
A15: MPC-Q300160 | B15: k4 | C15: MPC-Q300160k4 | D15: -5.121550199 | E15: -4.855852404 | F15: -6.000365345 | G15: -8.433351707 | H15: -9.146794312 | I15: -10.31247387 | J15: -11.26301767 | K15: -11.49882812 | L15: -10.89723891 | M15: -12.49296115 | N15: -13.79883338 | O15: -14.66486067 | P15: -15.62930018 | Q15: -15.89554676 | R15: -15.82231477 | S15: -14.68857298 | T15: -12.06882988 | U15: -8.293678596 | V15: -4.118655638 | W15: -0.3913836851 | X15: 2.144432913
A16: MPC-Q400125 | B16: k1 | C16: MPC-Q400125k1
A17: MPC-Q400126 | B17: k2 | C17: MPC-Q400126k2
A18: MPC-Q400127 | B18: k3 | C18: MPC-Q400127k3
A19: MPC-Q400128 | B19: k4 | C19: MPC-Q400128k4
A20: MPC-Q400160 | B20: k1 | C20: MPC-Q400160k1
A21: MPC-Q400160 | B21: k2 | C21: MPC-Q400160k2
A22: MPC-Q400160 | B22: k3 | C22: MPC-Q400160k3
A23: MPC-Q400160 | B23: k4 | C23: MPC-Q400160k4
A24: MPC-Q400200 | B24: k1 | C24: MPC-Q400200k1
A25: MPC-Q400200 | B25: k2 | C25: MPC-Q400200k2
A26: MPC-Q400200 | B26: k3 | C26: MPC-Q400200k3
A27: MPC-Q400200 | B27: k4 | C27: MPC-Q400200k4
A28: MPC-Q400225 | B28: k1 | C28: MPC-Q400225k1
A29: MPC-Q400225 | B29: k2 | C29: MPC-Q400225k2
A30: MPC-Q400225 | B30: k3 | C30: MPC-Q400225k3
A31: MPC-Q400225 | B31: k4 | C31: MPC-Q400225k4
A32: MPC-Q400250 | B32: k1 | C32: MPC-Q400250k1
A33: MPC-Q400250 | B33: k2 | C33: MPC-Q400250k2
A34: MPC-Q400250 | B34: k3 | C34: MPC-Q400250k3
A35: MPC-Q400250 | B35: k4 | C35: MPC-Q400250k4
A36: MPC-Q500125 | B36: k1 | C36: MPC-Q500125k1
A37: MPC-Q500125 | B37: k2 | C37: MPC-Q500125k2
A38: MPC-Q500125 | B38: k3 | C38: MPC-Q500125k3
A39: MPC-Q500125 | B39: k4 | C39: MPC-Q500125k4
A40: MPC-Q500160 | B40: k1 | C40: MPC-Q500160k1
A41: MPC-Q500160 | B41: k2 | C41: MPC-Q500160k2
A42: MPC-Q500160 | B42: k3 | C42: MPC-Q500160k3
A43: MPC-Q500160 | B43: k4 | C43: MPC-Q500160k4
A44: MPC-Q500200 | B44: k1 | C44: MPC-Q500200k1
A45: MPC-Q500201 | B45: k2 | C45: MPC-Q500201k2
A46: MPC-Q500202 | B46: k3 | C46: MPC-Q500202k3
A47: MPC-Q500203 | B47: k4 | C47: MPC-Q500203k4
A48: MPC-Q500225 | B48: k1 | C48: MPC-Q500225k1
A49: MPC-Q500225 | B49: k2 | C49: MPC-Q500225k2
A50: MPC-Q500225 | B50: k3 | C50: MPC-Q500225k3
A51: MPC-Q500225 | B51: k4 | C51: MPC-Q500225k4
A52: MPC-Q500250 | B52: k1 | C52: MPC-Q500250k1
A53: MPC-Q500250 | B53: k2 | C53: MPC-Q500250k2
A54: MPC-Q500250 | B54: k3 | C54: MPC-Q500250k3
A55: MPC-Q500250 | B55: k4 | C55: MPC-Q500250k4
A56: MPC-Q600125 | B56: k1 | C56: MPC-Q600125k1 | D56: -18.45990046 | E56: -26.34597551 | F56: -30.38594002 | G56: -23.00035593 | H56: -26.20080432 | I56: -30.38514011 | J56: -29.33792251 | K56: -29.90157004 | L56: -30.08100059 | M56: -27.09574002 | N56: -28.36321292 | O56: -30.84264112 | P56: -34.43553497 | Q56: -39.19642325 | R56: -43.88652964 | S56: -46.6552295 | T56: -46.20750191 | U56: -40.56843172 | V56: -31.39752642 | W56: -21.35494764 | X56: -10.47315161
A57: MPC-Q600125 | B57: k2 | C57: MPC-Q600125k2 | D57: 2.751880239 | E57: 2.907586083 | F57: 3.900632877 | G57: 4.931969701 | H57: 3.901535602 | I57: 2.974463062 | J57: 4.578618744 | K57: 4.012972997 | L57: 4.229155714 | M57: 5.03512802 | N57: 5.159336384 | O57: 4.980090796 | P57: 4.808695064 | Q57: 4.261864189 | R57: 3.611941073 | S57: 3.044930374 | T57: 2.724402198 | U57: 2.664426519 | V57: 3.116338853 | W57: 3.690847806 | X57: 4.516661716 | Y57: Messdatum: | Z57: 2012-10-05
A58: MPC-Q600125 | B58: k3 | C58: MPC-Q600125k3 | D58: 34.76894891 | E58: 47.89921418 | F58: 55.53930446 | G58: 44.41988093 | H58: 48.65463536 | I58: 54.6115361 | J58: 54.49325589 | K58: 54.85477096 | L58: 55.36622899 | M58: 51.26097582 | N58: 53.47052227 | O58: 57.37047349 | P58: 63.11021793 | Q58: 70.39604007 | R58: 77.4623057 | S58: 81.45031243 | T58: 80.39304922 | U58: 71.05540608 | V58: 56.41907507 | W58: 40.47126863 | X58: 23.39418481
A59: MPC-Q600125 | B59: k4 | C59: MPC-Q600125k4 | D59: -2.813680791 | E59: -4.359172652 | F59: -5.15090853 | G59: -3.703492334 | H59: -4.330715829 | I59: -5.150758382 | J59: -4.945515729 | K59: -5.05598182 | L59: -5.091144242 | M59: -4.506094994 | N59: -4.754489998 | O59: -5.240402533 | P59: -5.944530359 | Q59: -6.877561922 | R59: -7.796723069 | S59: -8.339329481 | T59: -8.251585234 | U59: -7.1464556 | V59: -5.349161458 | W59: -3.381038248 | X59: -1.248447543
A60: MPC-Q600160 | B60: k1 | C60: MPC-Q600160k1 | D60: -13.0172 | E60: -12.31090389 | F60: -20.51795901 | G60: -21.6247701 | H60: -25.25024202 | I60: -28.64162458 | J60: -27.6030871 | K60: -27.04202238 | L60: -27.40322034 | M60: -27.28769974 | N60: -29.844614 | O60: -34.04372726 | P60: -39.43306207 | Q60: -44.51681973 | R60: -48.12869218 | S60: -46.98094666 | T60: -39.92021723 | U60: -26.8000088 | V60: -14.88838537 | W60: -4.38189382 | X60: 2.975458275
A61: MPC-Q600160 | B61: k2 | C61: MPC-Q600160k2 | D61: 2.78765062 | E61: 3.777396285 | F61: 3.45062666 | G61: 3.987147146 | H61: 2.992366449 | I61: 1.728012954 | J61: 3.307163701 | K61: 2.970950687 | L61: 3.0314981 | M61: 3.775283733 | N61: 3.751151687 | O61: 3.406474995 | P61: 2.826245141 | Q61: 2.145800303 | R61: 1.480308517 | S61: 1.107115701 | T61: 1.297148052 | U61: 2.243762261 | V61: 3.401374732 | W61: 4.47722467 | X61: 5.345694707 | Y61: Messdatum: | Z61: 2012-10-16
A62: MPC-Q600160 | B62: k3 | C62: MPC-Q600160k3 | D62: 28.85686659 | E62: 28.53373569 | F62: 43.46934902 | G62: 46.06452638 | H62: 51.81140985 | I62: 56.85326318 | J62: 56.50196975 | K62: 55.12214667 | L62: 55.85445214 | M62: 56.38384063 | N62: 61.11477334 | O62: 68.57896084 | P62: 78.02092431 | Q62: 86.79432952 | R62: 92.84544963 | S62: 90.33758374 | T62: 77.39690458 | U62: 53.94445556 | V62: 32.95079361 | W62: 14.48854363 | X62: 1.675142174
A63: MPC-Q600160 | B63: k4 | C63: MPC-Q600160k4 | D63: -1.111992336 | E63: -1.005565629 | F63: -2.242151278 | G63: -2.408914289 | H63: -2.955182839 | I63: -3.466184178 | J63: -3.309692025 | K63: -3.225157052 | L63: -3.279579917 | M63: -3.262167741 | N63: -3.647426559 | O63: -4.280123979 | P63: -5.092157773 | Q63: -5.858150006 | R63: -6.402368466 | S63: -6.229436642 | T63: -5.165571264 | U63: -3.188697344 | V63: -1.393925304 | W63: 0.1891262965 | X63: 1.297688758
A64: MPC-R300-S225 | B64: k1 | C64: MPC-R300-S225k1
A65: MPC-R300-S225 | B65: k2 | C65: MPC-R300-S225k2
A66: MPC-R300-S225 | B66: k3 | C66: MPC-R300-S225k3
A67: MPC-R300-S225 | B67: k4 | C67: MPC-R300-S225k4
A68: MPC-Q600200 | B68: k1 | C68: =CONCATENATE(A68,B68) -> MPC-Q600200k1 | D68: -12.69218699 | E68: -8.59000251 | F68: -17.39058106 | G68: -19.08624624 | H68: -19.90484327 | I68: -21.39481332 | J68: -23.32449478 | K68: -23.2455463 | L68: -25.22852959 | M68: -26.0836177 | N68: -28.97507406 | O68: -32.62426344 | P68: -36.20844816 | Q68: -39.2605928 | R68: -40.22828804 | S68: -39.06407121 | T68: -34.29231306 | U68: -26.02717934 | V68: -17.92675237 | W68: -9.865102373 | X68: -2.485394583
A69: MPC-Q600200 | B69: k2 | C69: MPC-Q600200k2 | D69: 4.470914065 | E69: 5.580276401 | F69: 5.126879086 | G69: 5.097298852 | H69: 4.493583475 | I69: 3.898481729 | J69: 4.689344456 | K69: 4.597590986 | L69: 4.517982342 | M69: 5.110059981 | N69: 5.067847057 | O69: 4.933858937 | P69: 4.804775247 | Q69: 4.533745242 | R69: 4.365128087 | S69: 4.221617551 | T69: 4.083788277 | U69: 4.124473366 | V69: 4.322779886 | W69: 4.595851473 | X69: 4.924694085 | Y69: Messdatum: | Z69: 2012-10-16
A70: MPC-Q600200 | B70: k3 | C70: MPC-Q600200k3 | D70: 32.58897109 | E70: 25.27507296 | F70: 42.89318665 | G70: 46.34559545 | H70: 47.42262266 | I70: 49.88693233 | J70: 54.64061497 | K70: 54.38670893 | L70: 58.37908303 | M70: 60.72726837 | N70: 66.6225772 | O70: 73.98204934 | P70: 81.21296016 | Q70: 87.20934535 | R70: 89.02782836 | S70: 86.49355017 | T70: 76.55699172 | U70: 59.62544236 | V70: 43.18980531 | W70: 26.90863434 | X70: 12.08369043
A71: MPC-Q600200 | B71: k4 | C71: MPC-Q600200k4 | D71: -6.270605683 | E71: -4.092306981 | F71: -8.765482588 | G71: -9.665892942 | H71: -10.10058033 | I71: -10.89177414 | J71: -11.91643919 | K71: -11.87451768 | L71: -12.92749988 | M71: -13.38155111 | N71: -14.91693952 | O71: -16.85468669 | P71: -18.75791815 | Q71: -20.37863543 | R71: -20.89249585 | S71: -20.27428283 | T71: -17.740444 | U71: -13.35159343 | V71: -9.050201296 | W71: -4.769402456 | X71: -0.8507258978
A72: MPC-Q600225 | B72: k1 | C72: MPC-Q600225k1 | D72: -7.172247849 | E72: -14.19448918 | F72: -16.60645387 | G72: -15.13291709 | H72: -19.88000237 | I72: -18.1592657 | J72: -21.7885689 | K72: -24.80214159 | L72: -28.07829841 | M72: -29.05084058 | N72: -30.69846379 | O72: -34.65850911 | P72: -36.74771374 | Q72: -34.67478899 | R72: -32.33286769 | S72: -31.17963483 | T72: -23.82417286 | U72: -14.90531339 | V72: -6.235636359 | W72: 0.5034383375 | X72: 4.127995052
A73: MPC-Q600225 | B73: k2 | C73: MPC-Q600225k2 | D73: 3.642339619 | E73: 3.530718988 | F73: 3.955087797 | G73: 4.688982667 | H73: 3.960411195 | I73: 4.376632724 | J73: 5.01690655 | K73: 4.53576234 | L73: 4.374369984 | M73: 4.717730655 | N73: 4.723339504 | O73: 4.302738233 | P73: 4.200324541 | Q73: 4.217631958 | R73: 4.232963141 | S73: 3.831907309 | T73: 3.895237102 | U73: 3.930757138 | V73: 4.326511909 | W73: 4.686920791 | X73: 5.019942134
A74: MPC-Q600225 | B74: k3 | C74: MPC-Q600225k3 | D74: 22.00947744 | E74: 37.67879744 | F74: 43.52376286 | G74: 40.94656161 | H74: 50.88570832 | I74: 47.43513776 | J74: 56.23182395 | K74: 62.52282556 | L74: 69.72385165 | M74: 72.2529597 | N74: 75.96126015 | O74: 84.43985119 | P74: 89.03246706 | Q74: 84.39130336 | R74: 79.14365397 | S74: 76.150756 | T74: 59.68421029 | U74: 39.67646078 | V74: 20.58917689 | W74: 5.805163211 | X74: -2.007165685
A75: MPC-Q600225 | B75: k4 | C75: MPC-Q600225k4 | D75: -2.366749781 | E75: -5.259762752 | F75: -6.253436567 | G75: -5.646363307 | H75: -7.60206898 | I75: -6.893156907 | J75: -8.388346291 | K75: -9.629879399 | L75: -10.97958964 | M75: -11.38025268 | N75: -12.05903753 | O75: -13.6904976 | P75: -14.5512099 | Q75: -13.69720858 | R75: -12.73238603 | S75: -12.25728338 | T75: -9.226984748 | U75: -5.552602476 | V75: -1.980880186 | W75: 0.7954706037 | X75: 2.288724574
A76: MPC-Q600250 | B76: k1 | C76: MPC-Q600250k1 | D76: -7.172247849 | E76: -14.19448918 | F76: -16.60645387 | G76: -15.13291709 | H76: -19.88000237 | I76: -18.1592657 | J76: -21.7885689 | K76: -24.80214159 | L76: -28.07829841 | M76: -29.05084058 | N76: -30.69846379 | O76: -34.65850911 | P76: -36.74771374 | Q76: -34.67478899 | R76: -32.33286769 | S76: -31.17963483 | T76: -23.82417286 | U76: -14.90531339 | V76: -6.235636359 | W76: 0.5034383375 | X76: 4.127995052
A77: MPC-Q600250 | B77: k2 | C77: MPC-Q600250k2 | D77: 3.642339619 | E77: 3.530718988 | F77: 3.955087797 | G77: 4.688982667 | H77: 3.960411195 | I77: 4.376632724 | J77: 5.01690655 | K77: 4.53576234 | L77: 4.374369984 | M77: 4.717730655 | N77: 4.723339504 | O77: 4.302738233 | P77: 4.200324541 | Q77: 4.217631958 | R77: 4.232963141 | S77: 3.831907309 | T77: 3.895237102 | U77: 3.930757138 | V77: 4.326511909 | W77: 4.686920791 | X77: 5.019942134 | Y77: Messdatum: | Z77: 2012-10-17
A78: MPC-Q600250 | B78: k3 | C78: MPC-Q600250k3 | D78: 22.00947744 | E78: 37.67879744 | F78: 43.52376286 | G78: 40.94656161 | H78: 50.88570832 | I78: 47.43513776 | J78: 56.23182395 | K78: 62.52282556 | L78: 69.72385165 | M78: 72.2529597 | N78: 75.96126015 | O78: 84.43985119 | P78: 89.03246706 | Q78: 84.39130336 | R78: 79.14365397 | S78: 76.150756 | T78: 59.68421029 | U78: 39.67646078 | V78: 20.58917689 | W78: 5.805163211 | X78: -2.007165685
A79: MPC-Q600250 | B79: k4 | C79: MPC-Q600250k4 | D79: -2.366749781 | E79: -5.259762752 | F79: -6.253436567 | G79: -5.646363307 | H79: -7.60206898 | I79: -6.893156907 | J79: -8.388346291 | K79: -9.629879399 | L79: -10.97958964 | M79: -11.38025268 | N79: -12.05903753 | O79: -13.6904976 | P79: -14.5512099 | Q79: -13.69720858 | R79: -12.73238603 | S79: -12.25728338 | T79: -9.226984748 | U79: -5.552602476 | V79: -1.980880186 | W79: 0.7954706037 | X79: 2.288724574
A80: MPC-Q625125 | B80: k1 | C80: MPC-Q625125k1 | D80: -18.45990046 | E80: -26.34597551 | F80: -30.38594002 | G80: -23.00035593 | H80: -26.20080432 | I80: -30.38514011 | J80: -29.33792251 | K80: -29.90157004 | L80: -30.08100059 | M80: -27.09574002 | N80: -28.36321292 | O80: -30.84264112 | P80: -34.43553497 | Q80: -39.19642325 | R80: -43.88652964 | S80: -46.6552295 | T80: -46.20750191 | U80: -40.56843172 | V80: -31.39752642 | W80: -21.35494764 | X80: -10.47315161
A81: MPC-Q625125 | B81: k2 | C81: MPC-Q625125k2 | D81: 2.751880239 | E81: 2.907586083 | F81: 3.900632877 | G81: 4.931969701 | H81: 3.901535602 | I81: 2.974463062 | J81: 4.578618744 | K81: 4.012972997 | L81: 4.229155714 | M81: 5.03512802 | N81: 5.159336384 | O81: 4.980090796 | P81: 4.808695064 | Q81: 4.261864189 | R81: 3.611941073 | S81: 3.044930374 | T81: 2.724402198 | U81: 2.664426519 | V81: 3.116338853 | W81: 3.690847806 | X81: 4.516661716
A82: MPC-Q625125 | B82: k3 | C82: MPC-Q625125k3 | D82: 34.76894891 | E82: 47.89921418 | F82: 55.53930446 | G82: 44.41988093 | H82: 48.65463536 | I82: 54.6115361 | J82: 54.49325589 | K82: 54.85477096 | L82: 55.36622899 | M82: 51.26097582 | N82: 53.47052227 | O82: 57.37047349 | P82: 63.11021793 | Q82: 70.39604007 | R82: 77.4623057 | S82: 81.45031243 | T82: 80.39304922 | U82: 71.05540608 | V82: 56.41907507 | W82: 40.47126863 | X82: 23.39418481
A83: MPC-Q625125 | B83: k4 | C83: MPC-Q625125k4 | D83: -2.813680791 | E83: -4.359172652 | F83: -5.15090853 | G83: -3.703492334 | H83: -4.330715829 | I83: -5.150758382 | J83: -4.945515729 | K83: -5.05598182 | L83: -5.091144242 | M83: -4.506094994 | N83: -4.754489998 | O83: -5.240402533 | P83: -5.944530359 | Q83: -6.877561922 | R83: -7.796723069 | S83: -8.339329481 | T83: -8.251585234 | U83: -7.1464556 | V83: -5.349161458 | W83: -3.381038248 | X83: -1.248447543
A84: MPC-R300-S250 | B84: k1 | C84: MPC-R300-S250k1
A85: MPC-R300-S250 | B85: k2 | C85: MPC-R300-S250k2
A86: MPC-R300-S250 | B86: k3 | C86: MPC-R300-S250k3
A87: MPC-R300-S250 | B87: k4 | C87: MPC-R300-S250k4
A88: MPC-Q625160 | B88: k1 | C88: MPC-Q625160k1 | D88: -13.0172 | E88: -12.31090389 | F88: -20.51795901 | G88: -21.6247701 | H88: -25.25024202 | I88: -28.64162458 | J88: -27.6030871 | K88: -27.04202238 | L88: -27.40322034 | M88: -27.28769974 | N88: -29.844614 | O88: -34.04372726 | P88: -39.43306207 | Q88: -44.51681973 | R88: -48.12869218 | S88: -46.98094666 | T88: -39.92021723 | U88: -26.8000088 | V88: -14.88838537 | W88: -4.38189382 | X88: 2.975458275
A89: MPC-Q625160 | B89: k2 | C89: MPC-Q625160k2 | D89: 2.78765062 | E89: 3.777396285 | F89: 3.45062666 | G89: 3.987147146 | H89: 2.992366449 | I89: 1.728012954 | J89: 3.307163701 | K89: 2.970950687 | L89: 3.0314981 | M89: 3.775283733 | N89: 3.751151687 | O89: 3.406474995 | P89: 2.826245141 | Q89: 2.145800303 | R89: 1.480308517 | S89: 1.107115701 | T89: 1.297148052 | U89: 2.243762261 | V89: 3.401374732 | W89: 4.47722467 | X89: 5.345694707
A90: MPC-Q625160 | B90: k3 | C90: MPC-Q625160k3 | D90: 28.85686659 | E90: 28.53373569 | F90: 43.46934902 | G90: 46.06452638 | H90: 51.81140985 | I90: 56.85326318 | J90: 56.50196975 | K90: 55.12214667 | L90: 55.85445214 | M90: 56.38384063 | N90: 61.11477334 | O90: 68.57896084 | P90: 78.02092431 | Q90: 86.79432952 | R90: 92.84544963 | S90: 90.33758374 | T90: 77.39690458 | U90: 53.94445556 | V90: 32.95079361 | W90: 14.48854363 | X90: 1.675142174
A91: MPC-Q625160 | B91: k4 | C91: MPC-Q625160k4 | D91: -1.111992336 | E91: -1.005565629 | F91: -2.242151278 | G91: -2.408914289 | H91: -2.955182839 | I91: -3.466184178 | J91: -3.309692025 | K91: -3.225157052 | L91: -3.279579917 | M91: -3.262167741 | N91: -3.647426559 | O91: -4.280123979 | P91: -5.092157773 | Q91: -5.858150006 | R91: -6.402368466 | S91: -6.229436642 | T91: -5.165571264 | U91: -3.188697344 | V91: -1.393925304 | W91: 0.1891262965 | X91: 1.297688758
A92: MPC-Q625200 | B92: k1 | C92: MPC-Q625200k1 | D92: -12.69218699 | E92: -8.59000251 | F92: -17.39058106 | G92: -19.08624624 | H92: -19.90484327 | I92: -21.39481332 | J92: -23.32449478 | K92: -23.2455463 | L92: -25.22852959 | M92: -26.0836177 | N92: -28.97507406 | O92: -32.62426344 | P92: -36.20844816 | Q92: -39.2605928 | R92: -40.22828804 | S92: -39.06407121 | T92: -34.29231306 | U92: -26.02717934 | V92: -17.92675237 | W92: -9.865102373 | X92: -2.485394583
A93: MPC-Q625200 | B93: k2 | C93: MPC-Q625200k2 | D93: 4.470914065 | E93: 5.580276401 | F93: 5.126879086 | G93: 5.097298852 | H93: 4.493583475 | I93: 3.898481729 | J93: 4.689344456 | K93: 4.597590986 | L93: 4.517982342 | M93: 5.110059981 | N93: 5.067847057 | O93: 4.933858937 | P93: 4.804775247 | Q93: 4.533745242 | R93: 4.365128087 | S93: 4.221617551 | T93: 4.083788277 | U93: 4.124473366 | V93: 4.322779886 | W93: 4.595851473 | X93: 4.924694085
A94: MPC-Q625200 | B94: k3 | C94: MPC-Q625200k3 | D94: 32.58897109 | E94: 25.27507296 | F94: 42.89318665 | G94: 46.34559545 | H94: 47.42262266 | I94: 49.88693233 | J94: 54.64061497 | K94: 54.38670893 | L94: 58.37908303 | M94: 60.72726837 | N94: 66.6225772 | O94: 73.98204934 | P94: 81.21296016 | Q94: 87.20934535 | R94: 89.02782836 | S94: 86.49355017 | T94: 76.55699172 | U94: 59.62544236 | V94: 43.18980531 | W94: 26.90863434 | X94: 12.08369043
A95: MPC-Q625200 | B95: k4 | C95: MPC-Q625200k4 | D95: -6.270605683 | E95: -4.092306981 | F95: -8.765482588 | G95: -9.665892942 | H95: -10.10058033 | I95: -10.89177414 | J95: -11.91643919 | K95: -11.87451768 | L95: -12.92749988 | M95: -13.38155111 | N95: -14.91693952 | O95: -16.85468669 | P95: -18.75791815 | Q95: -20.37863543 | R95: -20.89249585 | S95: -20.27428283 | T95: -17.740444 | U95: -13.35159343 | V95: -9.050201296 | W95: -4.769402456 | X95: -0.8507258978
A96: MPC-Q625225 | B96: k1 | C96: MPC-Q625225k1 | D96: -7.172247849 | E96: -14.19448918 | F96: -16.60645387 | G96: -15.13291709 | H96: -19.88000237 | I96: -18.1592657 | J96: -21.7885689 | K96: -24.80214159 | L96: -28.07829841 | M96: -29.05084058 | N96: -30.69846379 | O96: -34.65850911 | P96: -36.74771374 | Q96: -34.67478899 | R96: -32.33286769 | S96: -31.17963483 | T96: -23.82417286 | U96: -14.90531339 | V96: -6.235636359 | W96: 0.5034383375 | X96: 4.127995052
A97: MPC-Q625225 | B97: k2 | C97: MPC-Q625225k2 | D97: 3.642339619 | E97: 3.530718988 | F97: 3.955087797 | G97: 4.688982667 | H97: 3.960411195 | I97: 4.376632724 | J97: 5.01690655 | K97: 4.53576234 | L97: 4.374369984 | M97: 4.717730655 | N97: 4.723339504 | O97: 4.302738233 | P97: 4.200324541 | Q97: 4.217631958 | R97: 4.232963141 | S97: 3.831907309 | T97: 3.895237102 | U97: 3.930757138 | V97: 4.326511909 | W97: 4.686920791 | X97: 5.019942134
A98: MPC-Q625225 | B98: k3 | C98: MPC-Q625225k3 | D98: 22.00947744 | E98: 37.67879744 | F98: 43.52376286 | G98: 40.94656161 | H98: 50.88570832 | I98: 47.43513776 | J98: 56.23182395 | K98: 62.52282556 | L98: 69.72385165 | M98: 72.2529597 | N98: 75.96126015 | O98: 84.43985119 | P98: 89.03246706 | Q98: 84.39130336 | R98: 79.14365397 | S98: 76.150756 | T98: 59.68421029 | U98: 39.67646078 | V98: 20.58917689 | W98: 5.805163211 | X98: -2.007165685
A99: MPC-Q625225 | B99: k4 | C99: MPC-Q625225k4 | D99: -2.366749781 | E99: -5.259762752 | F99: -6.253436567 | G99: -5.646363307 | H99: -7.60206898 | I99: -6.893156907 | J99: -8.388346291 | K99: -9.629879399 | L99: -10.97958964 | M99: -11.38025268 | N99: -12.05903753 | O99: -13.6904976 | P99: -14.5512099 | Q99: -13.69720858 | R99: -12.73238603 | S99: -12.25728338 | T99: -9.226984748 | U99: -5.552602476 | V99: -1.980880186 | W99: 0.7954706037 | X99: 2.288724574
A100: MPC-Q625250 | B100: k1 | C100: MPC-Q625250k1 | D100: -7.172247849 | E100: -14.19448918 | F100: -16.60645387 | G100: -15.13291709 | H100: -19.88000237 | I100: -18.1592657 | J100: -21.7885689 | K100: -24.80214159 | L100: -28.07829841 | M100: -29.05084058 | N100: -30.69846379 | O100: -34.65850911 | P100: -36.74771374 | Q100: -34.67478899 | R100: -32.33286769 | S100: -31.17963483 | T100: -23.82417286 | U100: -14.90531339 | V100: -6.235636359 | W100: 0.5034383375 | X100: 4.127995052
A101: MPC-Q625250 | B101: k2 | C101: MPC-Q625250k2 | D101: 3.642339619 | E101: 3.530718988 | F101: 3.955087797 | G101: 4.688982667 | H101: 3.960411195 | I101: 4.376632724 | J101: 5.01690655 | K101: 4.53576234 | L101: 4.374369984 | M101: 4.717730655 | N101: 4.723339504 | O101: 4.302738233 | P101: 4.200324541 | Q101: 4.217631958 | R101: 4.232963141 | S101: 3.831907309 | T101: 3.895237102 | U101: 3.930757138 | V101: 4.326511909 | W101: 4.686920791 | X101: 5.019942134
A102: MPC-Q625250 | B102: k3 | C102: MPC-Q625250k3 | D102: 22.00947744 | E102: 37.67879744 | F102: 43.52376286 | G102: 40.94656161 | H102: 50.88570832 | I102: 47.43513776 | J102: 56.23182395 | K102: 62.52282556 | L102: 69.72385165 | M102: 72.2529597 | N102: 75.96126015 | O102: 84.43985119 | P102: 89.03246706 | Q102: 84.39130336 | R102: 79.14365397 | S102: 76.150756 | T102: 59.68421029 | U102: 39.67646078 | V102: 20.58917689 | W102: 5.805163211 | X102: -2.007165685
A103: MPC-Q625250 | B103: k4 | C103: MPC-Q625250k4 | D103: -2.366749781 | E103: -5.259762752 | F103: -6.253436567 | G103: -5.646363307 | H103: -7.60206898 | I103: -6.893156907 | J103: -8.388346291 | K103: -9.629879399 | L103: -10.97958964 | M103: -11.38025268 | N103: -12.05903753 | O103: -13.6904976 | P103: -14.5512099 | Q103: -13.69720858 | R103: -12.73238603 | S103: -12.25728338 | T103: -9.226984748 | U103: -5.552602476 | V103: -1.980880186 | W103: 0.7954706037 | X103: 2.288724574
A104: MPC-R300-M125 | B104: k1 | C104: MPC-R300-M125k1
A105: MPC-R300-M125 | B105: k2 | C105: MPC-R300-M125k2
A106: MPC-R300-M125 | B106: k3 | C106: MPC-R300-M125k3
A107: MPC-R300-M125 | B107: k4 | C107: MPC-R300-M125k4
A108: MPC-R-S300100 | B108: k1 | C108: MPC-R-S300100k1 | D108: -5.740109307 | E108: -5.437580302 | F108: -15.55819439 | G108: -16.22568561 | H108: -13.38739623 | I108: -19.92969006 | J108: -24.24738506 | K108: -30.35235142 | L108: -34.14746791 | M108: -35.00639557 | N108: -40.62693467 | O108: -46.1834964 | P108: -50.07556403 | Q108: -53.11727293 | R108: -49.68094092 | S108: -42.32840849 | T108: -33.77242174 | U108: -23.16773581 | V108: -12.89561558 | W108: -2.839006431 | X108: 4.38796981
A109: MPC-R-S300100 | B109: k2 | C109: MPC-R-S300100k2 | D109: 5.136719038 | E109: 5.944752337 | F109: 8.028826575 | G109: 9.704703805 | H109: 11.81734594 | I109: 11.24248083 | J109: 11.25755922 | K109: 11.13106386 | L109: 10.98947143 | M109: 11.76649815 | N109: 12.29266358 | O109: 12.07951037 | P109: 11.18129899 | Q109: 10.474102 | R109: 9.428390069 | S109: 8.418052184 | T109: 7.603513709 | U109: 6.863672012 | V109: 6.324136277 | W109: 5.861977667 | X109: 5.621135828 | Y109: Messdatum: | Z109: 2012-10-02
A110: MPC-R-S300100 | B110: k3 | C110: MPC-R-S300100k3 | D110: 14.9205246 | E110: 15.28970792 | F110: 32.06314964 | G110: 34.7082834 | H110: 32.70212025 | I110: 41.62238854 | J110: 47.90405281 | K110: 56.63810125 | L110: 62.00459822 | M110: 64.02846081 | N110: 72.71227424 | O110: 80.56370945 | P110: 85.31409451 | Q110: 89.0213684 | R110: 82.98797109 | S110: 71.30606257 | T110: 58.0733567 | U110: 41.94194782 | V110: 26.49358144 | W110: 11.43541326 | X110: 0.7054126329
A111: MPC-R-S300100 | B111: k4 | C111: MPC-R-S300100k4 | D111: -1.445289535 | E111: -1.335522536 | F111: -5.007310985 | G111: -5.249463018 | H111: -4.219696054 | I111: -6.593278325 | J111: -8.159760478 | K111: -10.37467465 | L111: -11.75156438 | M111: -12.06317884 | N111: -14.10233362 | O111: -16.11828734 | P111: -17.53036028 | Q111: -18.63391919 | R111: -17.38721215 | S111: -14.71968338 | T111: -11.61553321 | U111: -7.768105309 | V111: -4.041331293 | W111: -0.3927477723 | X111: 2.229247965
A112: MPC-R-S300125 | B112: k1 | C112: MPC-R-S300125k1 | D112: -16.98965701 | E112: -8.430538759 | F112: -13.83616258 | G112: -16.37629575 | H112: -13.77048998 | I112: -18.22018329 | J112: -21.97945768 | K112: -26.00746853 | L112: -28.85318221 | M112: -30.71733724 | N112: -36.03041063 | O112: -39.60041642 | P112: -37.73304071 | Q112: -34.30240451 | R112: -27.5906766 | S112: -19.19320922 | T112: -11.19435903 | U112: -3.942020329 | V112: 2.396666168 | W112: 5.533248295 | X112: 6.757576407
A113: MPC-R-S300125 | B113: k2 | C113: MPC-R-S300125k2 | D113: 7.503651037 | E113: 7.164322711 | F113: 8.585238179 | G113: 10.62473311 | H113: 11.91630576 | I113: 12.2006064 | J113: 12.70517962 | K113: 12.86537171 | L113: 13.03044289 | M113: 13.58692163 | N113: 14.54484948 | O113: 14.8702098 | P113: 13.69691173 | Q113: 12.32711081 | R113: 10.70040081 | S113: 8.800197086 | T113: 7.268450378 | U113: 6.070551778 | V113: 5.174180173 | W113: 4.873892174 | X113: 5.019824491 | Y113: Messdatum: | Z113: 2012-10-02
A114: MPC-R-S300125 | B114: k3 | C114: MPC-R-S300125k3 | D114: 37.10131957 | E114: 22.68073319 | F114: 32.99512972 | G114: 39.21403629 | H114: 36.21891546 | I114: 43.82377647 | J114: 50.51310517 | K114: 57.30007517 | L114: 62.14685672 | M114: 65.7703082 | N114: 75.46934432 | O114: 81.66802326 | P114: 77.42231708 | Q114: 70.4082293 | R114: 57.73924267 | S114: 42.02337197 | T114: 27.33183195 | U114: 14.20234391 | V114: 2.877539055 | W114: -2.583078684 | X114: -4.451380639
A115: MPC-R-S300125 | B115: k4 | C115: MPC-R-S300125k4 | D115: -8.848491575 | E115: -4.162746098 | F115: -7.122077652 | G115: -8.512671233 | H115: -7.086094827 | I115: -9.522105324 | J115: -11.58013401 | K115: -13.78530704 | L115: -15.34320921 | M115: -16.36374934 | N115: -19.27241634 | O115: -21.22683319 | P115: -20.20453723 | Q115: -18.32642463 | R115: -14.65205912 | S115: -10.05482939 | T115: -5.675817039 | U115: -1.705485126 | V115: 1.764675447 | W115: 3.481833486 | X115: 4.152106121
A116: MPC-R-S300160 | B116: k1 | C116: MPC-R-S300160k1 | D116: -5.918161012 | E116: -7.985165727 | F116: -12.09222041 | G116: -12.97277517 | H116: -11.23821627 | I116: -14.15294807 | J116: -16.82289046 | K116: -20.75916831 | L116: -21.58659375 | M116: -22.48378324 | N116: -25.85014796 | O116: -28.91511255 | P116: -29.36754721 | Q116: -27.77444964 | R116: -22.22709135 | S116: -13.59664173 | T116: -6.508381884 | U116: -0.8716710487 | V116: 3.797287391 | W116: 5.19186266 | X116: 5.810312147
A117: MPC-R-S300160 | B117: k2 | C117: MPC-R-S300160k2 | D117: 5.29079045 | E117: 6.744196381 | F117: 9.336473345 | G117: 11.52136236 | H117: 12.75648975 | I117: 13.15171584 | J117: 14.55331839 | K117: 15.34889853 | L117: 15.3782292 | M117: 15.75703602 | N117: 16.83345401 | O117: 17.58368743 | P117: 16.78931655 | Q117: 15.53718583 | R117: 13.13269433 | S117: 9.855802312 | T117: 7.462788543 | U117: 5.736760594 | V117: 4.498309337 | W117: 4.366262121 | X117: 4.575081514 | Y117: Messdatum: | Z117: 2012-10-04
A118: MPC-R-S300160 | B118: k3 | C118: MPC-R-S300160k3 | D118: 18.1567817 | E118: 23.45425952 | F118: 33.68448235 | G118: 37.50736206 | H118: 35.51729899 | I118: 41.33272074 | J118: 47.69958227 | K118: 55.81508296 | L118: 57.38307525 | M118: 59.43034456 | N118: 66.76694262 | O118: 73.21682493 | P118: 73.26358005 | Q118: 69.0486812 | R118: 56.32798194 | S118: 37.00149553 | T118: 21.4268769 | U118: 9.218647963 | V118: -0.7023393528 | W118: -3.427740366 | X118: -4.368920571
A119: MPC-R-S300160 | B119: k4 | C119: MPC-R-S300160k4 | D119: -3.750955692 | E119: -5.170445502 | F119: -7.990916814 | G119: -8.595612864 | H119: -7.404406075 | I119: -9.4060754 | J119: -11.23962901 | K119: -13.94283441 | L119: -14.51105815 | M119: -15.12719509 | N119: -17.4390247 | O119: -19.54386062 | P119: -19.85457398 | Q119: -18.76053504 | R119: -14.95094262 | S119: -9.024062485 | T119: -4.156267023 | U119: -0.2853040218 | V119: 2.921080141 | W119: 3.878801582 | X119: 4.303522942
A120: MPC-R-L400125 | B120: k1 | C120: MPC-R-L400125k1
A121: MPC-R-L400125 | B121: k2 | C121: MPC-R-L400125k2
A122: MPC-R-L400125 | B122: k3 | C122: MPC-R-L400125k3
A123: MPC-R-L400125 | B123: k4 | C123: MPC-R-L400125k4
A124: MPC-R300-M160 | B124: k1 | C124: MPC-R300-M160k1
A125: MPC-R300-M160 | B125: k2 | C125: MPC-R300-M160k2
A126: MPC-R300-M160 | B126: k3 | C126: MPC-R300-M160k3
A127: MPC-R300-M160 | B127: k4 | C127: MPC-R300-M160k4
A128: MPC-R-L400160 | B128: k1 | C128: MPC-R-L400160k1
A129: MPC-R-L400160 | B129: k2 | C129: MPC-R-L400160k2
A130: MPC-R-L400160 | B130: k3 | C130: MPC-R-L400160k3
A131: MPC-R-L400160 | B131: k4 | C131: MPC-R-L400160k4
A132: MPC-R-L400200 | B132: k1 | C132: =CONCATENATE(A132,B132) -> MPC-R-L400200k1
A133: MPC-R-L400200 | B133: k2 | C133: MPC-R-L400200k2
A134: MPC-R-L400200 | B134: k3 | C134: MPC-R-L400200k3
A135: MPC-R-L400200 | B135: k4 | C135: MPC-R-L400200k4
A136: MPC-R-L400225 | B136: k1 | C136: MPC-R-L400225k1
A137: MPC-R-L400225 | B137: k2 | C137: MPC-R-L400225k2
A138: MPC-R-L400225 | B138: k3 | C138: MPC-R-L400225k3
A139: MPC-R-L400225 | B139: k4 | C139: MPC-R-L400225k4
A140: MPC-R-L400250 | B140: k1 | C140: MPC-R-L400250k1
A141: MPC-R-L400250 | B141: k2 | C141: MPC-R-L400250k2
A142: MPC-R-L400250 | B142: k3 | C142: MPC-R-L400250k3
A143: MPC-R-L400250 | B143: k4 | C143: MPC-R-L400250k4
A144: MPC-R300-M200 | B144: k1 | C144: MPC-R300-M200k1
A145: MPC-R300-M200 | B145: k2 | C145: MPC-R300-M200k2
A146: MPC-R300-M200 | B146: k3 | C146: MPC-R300-M200k3
A147: MPC-R300-M200 | B147: k4 | C147: MPC-R300-M200k4
A148: MPC-R-M400125 | B148: k1 | C148: MPC-R-M400125k1
A149: MPC-R-M400125 | B149: k2 | C149: MPC-R-M400125k2
A150: MPC-R-M400125 | B150: k3 | C150: MPC-R-M400125k3
A151: MPC-R-M400125 | B151: k4 | C151: MPC-R-M400125k4
A152: MPC-R-M400160 | B152: k1 | C152: MPC-R-M400160k1
A153: MPC-R-M400160 | B153: k2 | C153: MPC-R-M400160k2
A154: MPC-R-M400160 | B154: k3 | C154: MPC-R-M400160k3
A155: MPC-R-M400160 | B155: k4 | C155: MPC-R-M400160k4
A156: MPC-R-M400200 | B156: k1 | C156: MPC-R-M400200k1
A157: MPC-R-M400200 | B157: k2 | C157: MPC-R-M400200k2
A158: MPC-R-M400200 | B158: k3 | C158: MPC-R-M400200k3
A159: MPC-R-M400200 | B159: k4 | C159: MPC-R-M400200k4
A160: MPC-R-M400225 | B160: k1 | C160: MPC-R-M400225k1
A161: MPC-R-M400225 | B161: k2 | C161: MPC-R-M400225k2
A162: MPC-R-M400225 | B162: k3 | C162: MPC-R-M400225k3
A163: MPC-R-M400225 | B163: k4 | C163: MPC-R-M400225k4
A164: MPC-R300-M225 | B164: k1 | C164: MPC-R300-M225k1
A165: MPC-R300-M225 | B165: k2 | C165: MPC-R300-M225k2
A166: MPC-R300-M225 | B166: k3 | C166: MPC-R300-M225k3
A167: MPC-R300-M225 | B167: k4 | C167: MPC-R300-M225k4
A168: MPC-R-M400250 | B168: k1 | C168: MPC-R-M400250k1
A169: MPC-R-M400250 | B169: k2 | C169: MPC-R-M400250k2
A170: MPC-R-M400250 | B170: k3 | C170: MPC-R-M400250k3
A171: MPC-R-M400250 | B171: k4 | C171: MPC-R-M400250k4
A172: MPC-R-S400125 | B172: k1 | C172: MPC-R-S400125k1
A173: MPC-R-S400125 | B173: k2 | C173: MPC-R-S400125k2
A174: MPC-R-S400125 | B174: k3 | C174: MPC-R-S400125k3
A175: MPC-R-S400125 | B175: k4 | C175: MPC-R-S400125k4
A176: MPC-R-S400160 | B176: k1 | C176: MPC-R-S400160k1
A177: MPC-R-S400160 | B177: k2 | C177: MPC-R-S400160k2
A178: MPC-R-S400160 | B178: k3 | C178: MPC-R-S400160k3
A179: MPC-R-S400160 | B179: k4 | C179: MPC-R-S400160k4
A180: MPC-R-S400200 | B180: k1 | C180: MPC-R-S400200k1
A181: MPC-R-S400200 | B181: k2 | C181: MPC-R-S400200k2
A182: MPC-R-S400200 | B182: k3 | C182: MPC-R-S400200k3
A183: MPC-R-S400200 | B183: k4 | C183: MPC-R-S400200k4
A184: MPC-R300-M250 | B184: k1 | C184: MPC-R300-M250k1
A185: MPC-R300-M250 | B185: k2 | C185: MPC-R300-M250k2
A186: MPC-R300-M250 | B186: k3 | C186: MPC-R300-M250k3
A187: MPC-R300-M250 | B187: k4 | C187: MPC-R300-M250k4
A188: MPC-R-S400225 | B188: k1 | C188: MPC-R-S400225k1
A189: MPC-R-S400225 | B189: k2 | C189: MPC-R-S400225k2
A190: MPC-R-S400225 | B190: k3 | C190: MPC-R-S400225k3
A191: MPC-R-S400225 | B191: k4 | C191: MPC-R-S400225k4
A192: MPC-R-S400250 | B192: k1 | C192: MPC-R-S400250k1
A193: MPC-R-S400250 | B193: k2 | C193: MPC-R-S400250k2
A194: MPC-R-S400250 | B194: k3 | C194: MPC-R-S400250k3
A195: MPC-R-S400250 | B195: k4 | C195: MPC-R-S400250k4
A196: MPC-R-L500125 | B196: k1 | C196: =CONCATENATE(A196,B196) -> MPC-R-L500125k1
A197: MPC-R-L500125 | B197: k2 | C197: MPC-R-L500125k2
A198: MPC-R-L500125 | B198: k3 | C198: MPC-R-L500125k3
A199: MPC-R-L500125 | B199: k4 | C199: MPC-R-L500125k4
A200: MPC-R-L500160 | B200: k1 | C200: MPC-R-L500160k1
A201: MPC-R-L500160 | B201: k2 | C201: MPC-R-L500160k2
... 387 more rows

Sheet DR (hidden)
A1: Berechnung des Zugluftrisikos
A2: Achtung: Automatisierte Konstantenauswahl aus den "-CAP" Arbeitsblättern
A3: Annahme: | B3: Turbulenzgrad = | C3: =IF(Auslegung!D12="MPC-Q",20,40) -> 40 | D3: %
A5: Konstanten Temperaturverhältnis | C5: K051 | D5: =SUM('RS-CAP'!$C$51,'RM-CAP'!$C$51,'RL-CAP'!$C$51,'V-CAP'!$C$51,'Q-CAP'!$C$51) -> 0.31
C6: K052 | D6: =SUM('RS-CAP'!$C$52,'RM-CAP'!$C$52,'RL-CAP'!$C$52,'V-CAP'!$C$52,'Q-CAP'!$C$52) -> 1
A7: Temperaturen | B7: Zuluft | C7: =Auslegung!$D$34 -> 18
B8: Raum | C8: =Auslegung!$D$35 -> 26
A10: 1. Zugluftrisiko im Fußbodenbereich
B11: Lauflänge | C11: =xkr._vx!$L$24 -> 9.5
B12: Luftgeschwindigkeit, errechnet | C12: =xkr._vx!$N$24 -> 0.03930778718
B13: Luftgeschwindigkeit, gesetzt | C13: =IF(C12<0.05,0.05,C12) -> 0.05
B14: lok. Temperaturdifferenz | C14: =($C$8-$C$7)*$D$5*(1/C11)^$D$6 -> 0.2610526316
B15: Absolute Temperatur | C15: =C8-C14 -> 25.73894737
B16: Zugluftrisiko | C16: =IF((34-C15)*((C13-0.05)^0.62)*(0.37*C13*$C$3+3.14)>100,100,IF((34-C15)*((C13-0.05)^0.62)*(0.37*C13*$C$3+3.14)<0,0,(34-C15)*((C13-0.05)^0.62)*(0.37*C13*$C$3+3.14))) -> 0
A18: 2. Zugluftrisiko nach Stoßpunkt
B19: Lauflänge | C19: =IF(Auslegung!$D$12="MPC-Q",xkr._vx!$L$31,xkr._vx!$L$26) -> 2.2
B20: Luftgeschwindigkeit, errechnet | C20: =IF(Auslegung!$D$12="MPC-Q",xkr._vx!$N$31,xkr._vx!$N$26) -> 0.1028968241
B21: Luftgeschwindigkeit, gesetzt | C21: =IF(C20<0.05,0.05,C20) -> 0.1028968241
B22: lok. Temperaturdifferenz | C22: =($C$8-$C$7)*$D$5*(1/C19)^$D$6 -> 1.127272727
B23: Absolute Temperatur | C23: =C8-C22 -> 24.87272727
B24: Zugluftrisiko | C24: =IF((34-C23)*((C21-0.05)^0.62)*(0.37*C21*$C$3+3.14)>100,100,IF((34-C23)*((C21-0.05)^0.62)*(0.37*C21*$C$3+3.14)<0,0,(34-C23)*((C21-0.05)^0.62)*(0.37*C21*$C$3+3.14))) -> 6.878931183
A26: 3. Zugluftrisiko nach Ablösen an X_kritisch
B27: Lauflänge | C27: =xkr._vx!$L$28 -> 3.592453626
B28: Luftgeschwindigkeit, errechnet | C28: =xkr._vx!N28 -> 0.09772537128
B29: Luftgeschwindigkeit, gesetzt | C29: =IF(C28<0.05,0.05,C28) -> 0.09772537128
B30: lok. Temperaturdifferenz | C30: =($C$8-$C$7)*$D$5*(1/C27)^$D$6 -> 0.6903359816
B31: Absolute Temperatur | C31: =C8-C30 -> 25.30966402
B32: Zugluftrisiko | C32: =IF((34-C31)*((C29-0.05)^0.62)*(0.37*C29*$C$3+3.14)>100,100,IF((34-C31)*((C29-0.05)^0.62)*(0.37*C29*$C$3+3.14)<0,0,(34-C31)*((C29-0.05)^0.62)*(0.37*C29*$C$3+3.14))) -> 6.044034902

Sheet xkr._vx (hidden)
A1: Geschwindigkeit im Strahl und kritischer Strahlweg | G1: Annahme: | H1: Winkel nach xkrit | I1: 45
A2: Achtung: Automatisierte Konstantenauswahl aus den "-CAP" Arbeitsblättern
A3: Konstanten | B3: K031 | C3: =SUM('RS-CAP'!C44,'RM-CAP'!C44,'RL-CAP'!C44,'V-CAP'!C44,'Q-CAP'!C44) -> 0.0006606235138 | E3: Konstanten: | F3: K041 | G3: =SUM('RS-CAP'!C48,'RM-CAP'!C48,'RL-CAP'!C48,'V-CAP'!C48,'Q-CAP'!C48) -> 6.645486778e-05 | I3: Konstanten | J3: K071 | K3: =SUM('RM-CAP'!C53,'Q-CAP'!C53) -> 0
B4: K032 | C4: =SUM('RS-CAP'!C45,'RM-CAP'!C45,'RL-CAP'!C45,'V-CAP'!C45,'Q-CAP'!C45) -> 1 | F4: K042 | G4: =SUM('RS-CAP'!C49,'RM-CAP'!C49,'RL-CAP'!C49,'V-CAP'!C49,'Q-CAP'!C49) -> 0.4720107161 | J4: K072 | K4: =SUM('RM-CAP'!C54,'Q-CAP'!C54) -> 0
B5: K033 | C5: =SUM('RS-CAP'!C46,'RM-CAP'!C46,'RL-CAP'!C46,'V-CAP'!C46,'Q-CAP'!C46) -> 0.9365341152 | F5: K043 | G5: =SUM('RS-CAP'!C50,'RM-CAP'!C50,'RL-CAP'!C50,'V-CAP'!C50,'Q-CAP'!C50) -> 1.814530048 | J5: K081 | K5: =SUM('RM-CAP'!C55,'Q-CAP'!C55) -> 0
B6: K034 | C6: =SUM('RS-CAP'!C47,'RM-CAP'!C47,'RL-CAP'!C47,'V-CAP'!C47,'Q-CAP'!C47) -> 0 | F6: Dt0 | G6: =IF(Auslegung!$D$35-Auslegung!$D$34>0,Auslegung!$D$35-Auslegung!$D$34,ABS(Auslegung!$D$35-Auslegung!$D$34)) -> 8 | J6: K082 | K6: =SUM('RM-CAP'!C56,'Q-CAP'!C56) -> 0
J7: K083 | K7: =SUM('RM-CAP'!C57,'Q-CAP'!C57) -> 0
B8: Lauflänge | C8: Geschwindigkeit im Strahl horizontal | D8: Geschwindigkeit im Strahl vertikal | F8: kritischer Strahlweg Anzeige | G8: kritischer Strahlweg | H8: vertikaler Strahlweg | J8: Geschwindigkeit im Strahl an xKr
B9: L | C9: v0 | D9: v1 | F9: xkr._Anzeige | G9: xkr. | H9: y | J9: v0
B10: m | C10: m/s | D10: m/s | F10: m | G10: m | H10: m | J10: m/s
B11: 0.5 | C11: =$C$3*Auslegung!$D$32*(1/xkr._vx!B11)^xkr._vx!$C$5 -> 0.6195480127 | D11: =1/B11*$J$11 -> 0.3557167595 | F11: =IF($J$27<Auslegung!$D$39,$J$27,">Raumlänge") -> 1.895397351 | G11: =IF(J27<Auslegung!D39,xkr._vx!J27,Auslegung!D39) -> 1.895397351 | H11: =(Auslegung!$D$37-Auslegung!$D$38)/SIN(45/180*PI()) -> 1.697056275 | J11: =$C$3*Auslegung!$D$32*(1/xkr._vx!G11)^(xkr._vx!$C$5) -> 0.1778583797
B12: 0.6 | C12: =$C$3*Auslegung!$D$32*(1/xkr._vx!B12)^xkr._vx!$C$5 -> 0.5222988024 | D12: =1/B12*$J$11 -> 0.2964306329
B13: 0.7 | C13: =$C$3*Auslegung!$D$32*(1/xkr._vx!B13)^xkr._vx!$C$5 -> 0.4520860203 | D13: 0.2540833996
B14: 0.8 | C14: =$C$3*Auslegung!$D$32*(1/xkr._vx!B14)^xkr._vx!$C$5 -> 0.3989418901 | D14: 0.2223229747
B15: 0.9 | C15: =$C$3*Auslegung!$D$32*(1/xkr._vx!B15)^xkr._vx!$C$5 -> 0.3572757656 | D15: =1/B15*$J$11 -> 0.1976204219
B16: 1 | C16: =$C$3*Auslegung!$D$32*(1/xkr._vx!B16)^xkr._vx!$C$5 -> 0.3237055218 | D16: 0.1778583797
B17: 1.1 | C17: =$C$3*Auslegung!$D$32*(1/xkr._vx!B17)^xkr._vx!$C$5 -> 0.2960632116 | D17: 0.1616894361
B18: 1.2 | C18: =$C$3*Auslegung!$D$32*(1/xkr._vx!B18)^xkr._vx!$C$5 -> 0.2728941145 | D18: 0.1482153164
B19: 1.3 | C19: =$C$3*Auslegung!$D$32*(1/xkr._vx!B19)^xkr._vx!$C$5 -> 0.2531851742 | D19: 0.1368141383
B20: 1.4 | C20: =$C$3*Auslegung!$D$32*(1/xkr._vx!B20)^xkr._vx!$C$5 -> 0.2362088782 | D20: =1/B20*$J$11 -> 0.1270416998
B21: 1.5 | C21: =$C$3*Auslegung!$D$32*(1/xkr._vx!B21)^xkr._vx!$C$5 -> 0.2214290701 | D21: 0.1185722532
B22: 1.6 | C22: =$C$3*Auslegung!$D$32*(1/xkr._vx!B22)^xkr._vx!$C$5 -> 0.2084417834 | D22: 0.1111614873 | I22: 1/2 Durchlassabstand | J22: hor. Lauflänge | K22: ver. Lauflänge | L22: ges. Lauflänge | M22: Geschw. Endpunkt | N22: Geschw. OK A-Ber.
B23: 1.7 | C23: =$C$3*Auslegung!$D$32*(1/xkr._vx!B23)^xkr._vx!$C$5 -> 0.1969367792 | D23: 0.1046225763 | E23: Betrachtung Strahlweg frei entlang der Decke bis Wandkante | J23: =Auslegung!$D$41 -> 6 | M23: =$C$3*Auslegung!$D$32*(1/xkr._vx!J23)^xkr._vx!$C$5 -> 0.06044841459
B24: 1.8 | C24: =$C$3*Auslegung!$D$32*(1/xkr._vx!B24)^xkr._vx!$C$5 -> 0.1866717926 | D24: 0.09881021097 | E24: Betrachtung Strahlweg von Wandkante bis Fußboden Aufenthaltsbereich | K24: =Auslegung!$D$37+0.5 -> 3.5 | L24: =K24+J23 -> 9.5 | N24: =$C$3*Auslegung!$D$32*(1/xkr._vx!L24)^xkr._vx!$C$5 -> 0.03930778718
B25: 1.9 | C25: =$C$3*Auslegung!$D$32*(1/xkr._vx!B25)^xkr._vx!$C$5 -> 0.1774548406 | D25: 0.09360967355 | E25: Betrachtung Strahlweg von Durchlassmitte bis Stoßpunkt | I25: =Auslegung!$D$42/2 -> 1 | M25: =$C$3*Auslegung!$D$32*(1/xkr._vx!I25)^xkr._vx!$C$5 -> 0.3237055218
B26: 2 | C26: =$C$3*Auslegung!$D$32*(1/xkr._vx!B26)^xkr._vx!$C$5 -> 0.1691317907 | D26: 0.08892918987 | E26: Betrachtung Freistrahl ab Stoßpunkt bis Oberkante Aufenthaltsbereich | K26: =Auslegung!$D$37-Auslegung!$D$38 -> 1.2 | L26: =K26+I25 -> 2.2 | N26: =$C$3*Auslegung!$D$32*(1/((xkr._vx!I25+xkr._vx!K26)+xkr._vx!$C$4*xkr._vx!K26))^xkr._vx!$C$5 -> 0.1028968241
B27: 2.1 | C27: =$C$3*Auslegung!$D$32*(1/xkr._vx!B27)^xkr._vx!$C$5 -> 0.1615774484 | D27: 0.08469446654 | E27: Betrachtung Strahlweg bis xkritisch | J27: =$G$3*Auslegung!$D$32^$G$5*(1/xkr._vx!$G$6^(xkr._vx!$G$4)) -> 1.895397351 | M27: =$C$3*Auslegung!$D$32*(1/xkr._vx!J27)^xkr._vx!$C$5 -> 0.1778583797
B28: 2.2 | C28: =$C$3*Auslegung!$D$32*(1/xkr._vx!B28)^xkr._vx!$C$5 -> 0.1546890546 | D28: 0.08084471806 | E28: Betrachtung von xkritisch bis Oberkante Aufenthaltsbereich | K28: =(Auslegung!$D$37-Auslegung!$D$38)/SIN($I$1/180*PI()) -> 1.697056275 | L28: =J27+K28 -> 3.592453626 | N28: =IFERROR($C$3*Auslegung!$D$32*(1/xkr._vx!L28)^xkr._vx!$C$5,"") -> 0.09772537128
B29: 2.3 | C29: =$C$3*Auslegung!$D$32*(1/xkr._vx!B29)^xkr._vx!$C$5 -> 0.148381463 | D29: 0.07732973032
B30: 2.4 | C30: =$C$3*Auslegung!$D$32*(1/xkr._vx!B30)^xkr._vx!$C$5 -> 0.1425835124 | D30: 0.07410765822 | E30: Betrachtung MPC-Q: vertikaler isothermer Freistrahl | H30: Durchlassfläche: | I30: =((Auslegung!D18-60)/1000)^2 -> 0.2916
B31: 2.5 | C31: =$C$3*Auslegung!$D$32*(1/xkr._vx!B31)^xkr._vx!$C$5 -> 0.1372352613 | D31: 0.07114335189 | G31: Austrittsgeschwindigkeit: | I31: =(Auslegung!$D$32/xkr._vx!$I$30)/3600 -> 0.4667733577 | K31: =Auslegung!$D$37-Auslegung!$D$38 -> 1.2 | L31: =K31 -> 1.2 | M31: =I31/L31 -> 0.3889777981 | N31: =M31 -> 0.3889777981
B32: 2.6 | C32: =$C$3*Auslegung!$D$32*(1/xkr._vx!B32)^xkr._vx!$C$5 -> 0.1322858555 | D32: 0.06840706913 | G32: Archimedes-Zahl | I32: =(9.81*(Auslegung!D18/1000)*(Auslegung!D35-Auslegung!D34))/((273.15+Auslegung!D35)*xkr._vx!I31^2) -> 0.7224522007
B33: 2.7 | C33: =$C$3*Auslegung!$D$32*(1/xkr._vx!B33)^xkr._vx!$C$5 -> 0.1276918639 | D33: 0.06587347398 | G33: anisothermer Freistrahl | I33: =I31+SQRT((I32/0.2)*(2.83*(SQRT(1.2)-1))) -> 1.454552001
B34: 2.8 | C34: =$C$3*Auslegung!$D$32*(1/xkr._vx!B34)^xkr._vx!$C$5 -> 0.1234159687 | D34: 0.06352084991
B35: 2.9 | C35: =$C$3*Auslegung!$D$32*(1/xkr._vx!B35)^xkr._vx!$C$5 -> 0.1194259234 | D35: 0.06133047577
B36: 3 | C36: =$C$3*Auslegung!$D$32*(1/xkr._vx!B36)^xkr._vx!$C$5 -> 0.1156937173 | D36: 0.05928612658 | J36: Maximalgeschw. | K36: ges. Lauflänge bis vmax | L36: Lauflänge vertikal | M36: Wandabstand
B37: 3.1 | C37: =$C$3*Auslegung!$D$32*(1/xkr._vx!B37)^xkr._vx!$C$5 -> 0.1121949007 | D37: 0.05737367088
B38: 3.2 | C38: =$C$3*Auslegung!$D$32*(1/xkr._vx!B38)^xkr._vx!$C$5 -> 0.1089080343 | D38: 0.05558074367 | F38: Berechnung Wandabstand bei vorgegebener Max. Geschw. | J38: =Auslegung!$D$33 -> 0.2 | K38: =1/(J38/($C$3*Auslegung!$D$32))^(1/xkr._vx!$C$5) -> 1.672212652 | L38: =Auslegung!$D$37-Auslegung!$D$38 -> 1.2 | M38: =K38-L38 -> 0.4722126517
B39: 3.3 | C39: =$C$3*Auslegung!$D$32*(1/xkr._vx!B39)^xkr._vx!$C$5 -> 0.1058142392 | D39: 0.05389647871
B40: 3.4 | C40: =$C$3*Auslegung!$D$32*(1/xkr._vx!B40)^xkr._vx!$C$5 -> 0.1028968241 | D40: 0.05231128816
B41: 3.5 | C41: =$C$3*Auslegung!$D$32*(1/xkr._vx!B41)^xkr._vx!$C$5 -> 0.1001409768 | D41: 0.05081667992
B42: 3.6 | C42: =$C$3*Auslegung!$D$32*(1/xkr._vx!B42)^xkr._vx!$C$5 -> 0.09753350631 | D42: 0.04940510548
B43: 3.7 | C43: =$C$3*Auslegung!$D$32*(1/xkr._vx!B43)^xkr._vx!$C$5 -> 0.09506262637 | D43: 0.04806983236
B44: 3.8 | C44: =$C$3*Auslegung!$D$32*(1/xkr._vx!B44)^xkr._vx!$C$5 -> 0.09271777263 | D44: 0.04680483677
B45: 3.9 | C45: =$C$3*Auslegung!$D$32*(1/xkr._vx!B45)^xkr._vx!$C$5 -> 0.09048944798 | D45: 0.04560471275
B46: 4 | C46: =$C$3*Auslegung!$D$32*(1/xkr._vx!B46)^xkr._vx!$C$5 -> 0.08836909073 | D46: 0.04446459493
B47: 4.1 | C47: =$C$3*Auslegung!$D$32*(1/xkr._vx!B47)^xkr._vx!$C$5 -> 0.08634896186 | D47: 0.04338009262
B48: 4.2 | C48: =$C$3*Auslegung!$D$32*(1/xkr._vx!B48)^xkr._vx!$C$5 -> 0.08442204827 | D48: 0.04234723327
B49: 4.3 | C49: =$C$3*Auslegung!$D$32*(1/xkr._vx!B49)^xkr._vx!$C$5 -> 0.08258197937 | D49: 0.04136241389
B50: 4.4 | C50: =$C$3*Auslegung!$D$32*(1/xkr._vx!B50)^xkr._vx!$C$5 -> 0.08082295496 | D50: 0.04042235903
B51: 4.5 | C51: =$C$3*Auslegung!$D$32*(1/xkr._vx!B51)^xkr._vx!$C$5 -> 0.07913968258 | D51: 0.03952408439
B52: 4.6 | C52: =$C$3*Auslegung!$D$32*(1/xkr._vx!B52)^xkr._vx!$C$5 -> 0.077527323 | D52: 0.03866486516
B53: 4.7 | C53: =$C$3*Auslegung!$D$32*(1/xkr._vx!B53)^xkr._vx!$C$5 -> 0.07598144261 | D53: 0.03784220845
B54: 4.8 | C54: =$C$3*Auslegung!$D$32*(1/xkr._vx!B54)^xkr._vx!$C$5 -> 0.07449797161 | D54: 0.03705382911
B55: 4.9 | C55: =$C$3*Auslegung!$D$32*(1/xkr._vx!B55)^xkr._vx!$C$5 -> 0.0730731674 | D55: 0.03629762852
B56: 5 | C56: =$C$3*Auslegung!$D$32*(1/xkr._vx!B56)^xkr._vx!$C$5 -> 0.07170358223 | D56: 0.03557167595
B57: 5.1 | C57: =$C$3*Auslegung!$D$32*(1/xkr._vx!B57)^xkr._vx!$C$5 -> 0.07038603463 | D57: 0.03487419211
B58: 5.2 | C58: =$C$3*Auslegung!$D$32*(1/xkr._vx!B58)^xkr._vx!$C$5 -> 0.06911758412 | D58: 0.03420353456
B59: 5.3 | C59: =$C$3*Auslegung!$D$32*(1/xkr._vx!B59)^xkr._vx!$C$5 -> 0.06789550876 | D59: 0.03355818486
B60: 5.4 | C60: =$C$3*Auslegung!$D$32*(1/xkr._vx!B60)^xkr._vx!$C$5 -> 0.06671728516 | D60: 0.03293673699
B61: 5.5 | C61: =$C$3*Auslegung!$D$32*(1/xkr._vx!B61)^xkr._vx!$C$5 -> 0.06558057064 | D61: 0.03233788722
B62: 5.6 | C62: =$C$3*Auslegung!$D$32*(1/xkr._vx!B62)^xkr._vx!$C$5 -> 0.06448318729 | D62: 0.03176042495
B63: 5.7 | C63: =$C$3*Auslegung!$D$32*(1/xkr._vx!B63)^xkr._vx!$C$5 -> 0.06342310771 | D63: 0.03120322452
B64: 5.8 | C64: =$C$3*Auslegung!$D$32*(1/xkr._vx!B64)^xkr._vx!$C$5 -> 0.06239844215 | D64: 0.03066523789
B65: 5.9 | C65: =$C$3*Auslegung!$D$32*(1/xkr._vx!B65)^xkr._vx!$C$5 -> 0.06140742705 | D65: 0.03014548809
B66: 6 | C66: =$C$3*Auslegung!$D$32*(1/xkr._vx!B66)^xkr._vx!$C$5 -> 0.06044841459 | D66: 0.02964306329

Sheet Eingabe (hidden)
E2: 1 | F2: = Produktgruppe emcoair
F3: KSW | G3: Artikel
G4: 1 | H4: Schlitzanzahl | I4: 1 Schlitz
G5: 2 | I5: 2 Schlitze
G6: X | I6: Sonder
H7: K | I7: Funktion | J7: Zuluft / Abluft Kombination
H8: Z | J8: Zuluft
H9: A | J9: Abluft
I10: 0500 | J10: Breite
I11: 0600
I12: 0700
I13: 0800
I14: 0900
I15: 1000
I16: 1100
I17: 1200
J18: A | K18: Werkstoff | L18: Aluminium
K21: 9010 | L21: Oberfläche Luftdurchlass | M21: RAL 9010 glänzend
K22: E6C0 | M22: Aluminium naturfarbig eloxiert
K23: XXXX | M23: RAL-Ton **** glänzend
K24: SSSS | M24: Sonderlackierung
L25: S | M25: Farbe Luftlenkelement | N25: schwarz
L26: W | N26: weiß
L27: G | N27: grau
M28: C | N28: Luftlenkeinstellung | O28: DE
M29: S | O29: Sonder
N30: V | O30: Werkstoff Anschlusskasten | P30: Stahl verzinkt
N31: 0 | P31: ohne Anschlusskasten
O32: 1 | P32: Drossel | Q32: mit FBD
O33: 0 | Q33: ohne FBD
P34: B1 | Q34: Innenauskleidung | R34: Dämmung Baustoffklasse B1
P35: A2 | R35: Dämmung Baustoffklasse A2
Q36: 1 | R36: Stutzenanzahl | S36: 1 Stutzen
Q37: x | S37: Sonder
R38: 100 | S38: Stutzendurchmesser | T38: 98 mm
R39: 080 | T39: 78 mm
R40: xxx | T40: Sonder
E41: =E2 -> 1 | F41: =F3 -> KSW | G41: =G4 -> 1 | H41: 1 | I41: =I10 -> 0500 | J41: =J18 -> A | K41: =K21 -> 9010 | L41: =L25 -> S | M41: =M28 -> C | N41: =N30 -> V | O41: =O32 -> 1 | P41: =P34 -> B1 | Q41: =Q36 -> 1 | R41: =R38 -> 100
A45: Schwarz | B45: S
A46: weiß | B46: W
A47: naturfarbig eloxiert | B47: K
A48: weiß (RAL 9010) bepulvert | B48: L
A49: Anschlusskasten ohne Mengeneinstellung | B49: AK1
A50: Anschlusskasten mit Mengeneinstellung* | B50: AK2

Sheet RS-CAP (hidden)
A1: Übergabedaten: | C1: Gewählter Durchlass | E1: =CONCATENATE(Auslegung!$D$12,Auslegung!$D$18,Auslegung!$D$25) -> MPC-R-M600250
C2: Volumenstrom | E2: =Auslegung!$D$32 -> 490
C3: Temperaturdifferenz | E3: =Auslegung!$D$35-Auslegung!$D$34 -> 8
C4: MPC-R-S300 | D4: MPC-R-S300 | E4: MPC-R-S300 | F4: MPC-R-S600 | G4: MPC-R-S600 | H4: MPC-R-S600 | I4: MPC-R-S600 | J4: MPC-R-S600 | K4: MPC-R-S625 | L4: MPC-R-S625 | M4: MPC-R-S625 | N4: MPC-R-S625 | O4: MPC-R-S625
C5: 100 | D5: 125 | E5: 160 | F5: 125 | G5: 160 | H5: 200 | I5: 225 | J5: 250 | K5: 125 | L5: 160 | M5: 200 | N5: 225 | O5: 250
C6: =CONCATENATE(C4,C5) -> MPC-R-S300100 | D6: =CONCATENATE(D4,D5) -> MPC-R-S300125 | E6: MPC-R-S300160 | F6: MPC-R-S600125 | G6: MPC-R-S600160 | H6: MPC-R-S600200 | I6: MPC-R-S600225 | J6: MPC-R-S600250 | K6: =CONCATENATE(K4,K5) -> MPC-R-S625125 | L6: MPC-R-S625160 | M6: MPC-R-S625200 | N6: MPC-R-S625225 | O6: MPC-R-S625250 | P6: 1
P7: 2
A8: Konstante | B8: K011 | C8: 0.0006028856083 | D8: 0.0008245673813 | E8: 0.0004495357692 | F8: 0.001121507087 | G8: 7.391137777e-05 | H8: 0.0001991157132 | I8: 0.0002408847526 | J8: 0.0002408847526 | K8: 0.001121507087 | L8: 7.391137777e-05 | M8: 0.0001991157132 | N8: 0.0002408847526 | O8: 0.0002408847526 | P8: 3
B9: K012 | C9: 2.210927916 | D9: 2.055880892 | E9: 2.04224136 | F9: 1.904470814 | G9: 2.252594001 | H9: 1.96550655 | I9: 1.984235399 | J9: 1.984235399 | K9: 1.904470814 | L9: 2.252594001 | M9: 1.96550655 | N9: 1.984235399 | O9: 1.984235399 | P9: 4
B10: K021 | P10: 5
B11: K022 | P11: 6
B12: K031 | C12: 0.001028216959 | D12: 0.001028216959 | E12: 0.001028216959 | F12: 0.0007596254601 | G12: 0.0007596254601 | H12: 0.0007596254601 | I12: 0.0007596254601 | J12: 0.0007596254601 | K12: 0.0007596254601 | L12: 0.0007596254601 | M12: 0.0007596254601 | N12: 0.0007596254601 | O12: 0.0007596254601 | P12: 7
B13: K032 | C13: 1 | D13: 1 | E13: 1 | F13: 1 | G13: 1 | H13: 1 | I13: 1 | J13: 1 | K13: 1 | L13: 1 | M13: 1 | N13: 1 | O13: 1 | P13: 8 | R13: Annahme: Keine Dissipation im Stoß (wie auch bei Standard-Drallern)
B14: K033 | C14: 1.11835034 | D14: 1.11835034 | E14: 1.11835034 | F14: 0.910976123 | G14: 0.910976123 | H14: 0.910976123 | I14: 0.910976123 | J14: 0.910976123 | K14: 0.910976123 | L14: 0.910976123 | M14: 0.910976123 | N14: 0.910976123 | O14: 0.910976123 | P14: 9
B15: K034 | P15: 10
B16: K041 | C16: 0.00374017203 | D16: 0.00374017203 | E16: 0.00374017203 | F16: 0.0006175704974 | G16: 0.0006175704974 | H16: 0.0006175704974 | I16: 0.0006175704974 | J16: 0.0006175704974 | K16: 0.0006175704974 | L16: 0.0006175704974 | M16: 0.0006175704974 | N16: 0.0006175704974 | O16: 0.0006175704974 | P16: 11
B17: K042 | C17: 0.3659212917 | D17: 0.3659212917 | E17: 0.3659212917 | F17: 0.3934951057 | G17: 0.3934951057 | H17: 0.3934951057 | I17: 0.3934951057 | J17: 0.3934951057 | K17: 0.3934951057 | L17: 0.3934951057 | M17: 0.3934951057 | N17: 0.3934951057 | O17: 0.3934951057 | P17: 12
B18: K043 | C18: 1.330265369 | D18: 1.330265369 | E18: 1.330265369 | F18: 1.510168118 | G18: 1.510168118 | H18: 1.510168118 | I18: 1.510168118 | J18: 1.510168118 | K18: 1.510168118 | L18: 1.510168118 | M18: 1.510168118 | N18: 1.510168118 | O18: 1.510168118 | P18: 13
B19: K051 | C19: 0.31 | D19: 0.31 | E19: 0.31 | F19: 0.31 | G19: 0.31 | H19: 0.31 | I19: 0.31 | J19: 0.31 | K19: 0.31 | L19: 0.31 | M19: 0.31 | N19: 0.31 | O19: 0.31 | P19: 14 | R19: Achtung! Konstanten K051 und K052 aus Konstantensatz VAL DN 250 verwendet!
B20: K052 | C20: 1 | D20: 1 | E20: 1 | F20: 1 | G20: 1 | H20: 1 | I20: 1 | J20: 1 | K20: 1 | L20: 1 | M20: 1 | N20: 1 | O20: 1 | P20: 15
B21: K071 | P21: 16
B22: K072 | P22: 17
B23: K081 | P23: 18
B24: K082 | P24: 19
B25: K083 | P25: 20
B26: K091 | P26: 21
B27: K092 | P27: 22
B28: K093 | P28: 23
B29: K094 | P29: 24
B30: K101 | P30: 25
B31: K102 | P31: 26
B32: K103 | P32: 27
B33: K104 | P33: 28
B34: K021Abluft | P34: 29
B35: K022Abluft | P35: 30
B36: K011Abluft | P36: 31
B37: K012Abluft | P37: 32
C38: =IFERROR(HLOOKUP($E$1,$C$6:$O$36,P6,FALSE),"") -> 
C39: =IFERROR(HLOOKUP($E$1,$C$6:$O$36,P7,FALSE),"") -> 
A40: Rückgabe | B40: K011
B41: K012
B42: K021
B43: K022
B44: K031
B45: K032
B46: K033
B47: K034
B48: K041
B49: K042
B50: K043
B51: K051
B52: K052
B53: K071
B54: K072
B55: K081
B56: K082
B57: K083
B58: K091
B59: K092
B60: K093
B61: K094
B62: K101
B63: K102
B64: K103
B65: K104
B66: K021Abluft
B67: K022Abluft
B68: K011Abluft
B69: K012Abluft

Sheet RM-CAP (hidden)
A1: Übergabedaten: | C1: Gewählter Durchlass | E1: =CONCATENATE(Auslegung!$D$12,Auslegung!$D$18,Auslegung!$D$25) -> MPC-R-M600250
C2: Volumenstrom | E2: =Auslegung!$D$32 -> 490
C3: Temperaturdifferenz | E3: =Auslegung!$D$35-Auslegung!$D$34 -> 8
C4: MPC-R-M600 | D4: MPC-R-M600 | E4: MPC-R-M600 | F4: MPC-R-M600 | G4: MPC-R-M600 | H4: MPC-R-M625 | I4: MPC-R-M625 | J4: MPC-R-M625 | K4: MPC-R-M625 | L4: MPC-R-M625
C5: 125 | D5: 160 | E5: 200 | F5: 225 | G5: 250 | H5: 125 | I5: 160 | J5: 200 | K5: 225 | L5: 250
C6: =CONCATENATE(C4,C5,) -> MPC-R-M600125 | D6: =CONCATENATE(D4,D5,) -> MPC-R-M600160 | E6: MPC-R-M600200 | F6: MPC-R-M600225 | G6: MPC-R-M600250 | H6: =CONCATENATE(H4,H5,) -> MPC-R-M625125 | I6: =CONCATENATE(I4,I5,) -> MPC-R-M625160 | J6: MPC-R-M625200 | K6: MPC-R-M625225 | L6: MPC-R-M625250 | M6: 1
M7: 2
A8: Konstante | B8: K011 | C8: 0.001585436062 | D8: 0.0001555522243 | E8: 0.0002101441243 | F8: 0.0001532800729 | G8: 0.0001532800729 | H8: 0.001585436062 | I8: 0.0001555522243 | J8: 0.0002101441243 | K8: 0.0001532800729 | L8: 0.0001532800729 | M8: 3
B9: K012 | C9: 1.836670396 | D9: 2.072374835 | E9: 1.956468107 | F9: 1.999712573 | G9: 1.999712573 | H9: 1.836670396 | I9: 2.072374835 | J9: 1.956468107 | K9: 1.999712573 | L9: 1.999712573 | M9: 4
B10: K021 | M10: 5
B11: K022 | M11: 6
B12: K031 | C12: 0.0006606235138 | D12: 0.0006606235138 | E12: 0.0006606235138 | F12: 0.0006606235138 | G12: 0.0006606235138 | H12: 0.0006606235138 | I12: 0.0006606235138 | J12: 0.0006606235138 | K12: 0.0006606235138 | L12: 0.0006606235138 | M12: 7
B13: K032 | C13: 1 | D13: 1 | E13: 1 | F13: 1 | G13: 1 | H13: 1 | I13: 1 | J13: 1 | K13: 1 | L13: 1 | M13: 8 | O13: Annahme: Keine Dissipation im Stoß (wie auch bei Standard-Drallern)
B14: K033 | C14: 0.9365341152 | D14: 0.9365341152 | E14: 0.9365341152 | F14: 0.9365341152 | G14: 0.9365341152 | H14: 0.9365341152 | I14: 0.9365341152 | J14: 0.9365341152 | K14: 0.9365341152 | L14: 0.9365341152 | M14: 9
B15: K034 | M15: 10
B16: K041 | C16: 6.645486778e-05 | D16: 6.645486778e-05 | E16: 6.645486778e-05 | F16: 6.645486778e-05 | G16: 6.645486778e-05 | H16: 6.645486778e-05 | I16: 6.645486778e-05 | J16: 6.645486778e-05 | K16: 6.645486778e-05 | L16: 6.645486778e-05 | M16: 11
B17: K042 | C17: 0.4720107161 | D17: 0.4720107161 | E17: 0.4720107161 | F17: 0.4720107161 | G17: 0.4720107161 | H17: 0.4720107161 | I17: 0.4720107161 | J17: 0.4720107161 | K17: 0.4720107161 | L17: 0.4720107161 | M17: 12
B18: K043 | C18: 1.814530048 | D18: 1.814530048 | E18: 1.814530048 | F18: 1.814530048 | G18: 1.814530048 | H18: 1.814530048 | I18: 1.814530048 | J18: 1.814530048 | K18: 1.814530048 | L18: 1.814530048 | M18: 13
B19: K051 | C19: 0.31 | D19: 0.31 | E19: 0.31 | F19: 0.31 | G19: 0.31 | H19: 0.31 | I19: 0.31 | J19: 0.31 | K19: 0.31 | L19: 0.31 | M19: 14 | O19: Achtung! Konstanten K051 und K052 aus Konstantensatz VAL DN 250 verwendet!
B20: K052 | C20: 1 | D20: 1 | E20: 1 | F20: 1 | G20: 1 | H20: 1 | I20: 1 | J20: 1 | K20: 1 | L20: 1 | M20: 15
B21: K071 | M21: 16
B22: K072 | M22: 17
B23: K081 | M23: 18
B24: K082 | M24: 19
B25: K083 | M25: 20
B26: K091 | M26: 21
B27: K092 | M27: 22
B28: K093 | M28: 23
B29: K094 | M29: 24
B30: K101 | M30: 25
B31: K102 | M31: 26
B32: K103 | M32: 27
B33: K104 | M33: 28
B34: K021Abluft | M34: 29
B35: K022Abluft | M35: 30
B36: K011Abluft | M36: 31
B37: K012Abluft | M37: 32
C38: =IFERROR(HLOOKUP($E$1,$C$6:$L$37,M6,FALSE),"") -> MPC-R-M600250
C39: =IFERROR(HLOOKUP($E$1,$C$6:$L$37,M7,FALSE),"") -> 0
A40: Rückgabe | B40: K011 | C40: 0.0001532800729
B41: K012 | C41: 1.999712573 | O41: 0.0066795
B42: K021 | C42: 0
B43: K022 | C43: 0
B44: K031 | C44: 0.0006606235138
B45: K032 | C45: 1
B46: K033 | C46: 0.9365341152
B47: K034 | C47: 0
B48: K041 | C48: 6.645486778e-05
B49: K042 | C49: 0.4720107161
B50: K043 | C50: 1.814530048
B51: K051 | C51: 0.31
B52: K052 | C52: 1
B53: K071 | C53: 0
B54: K072 | C54: 0
B55: K081 | C55: 0
B56: K082 | C56: 0
B57: K083 | C57: 0
B58: K091 | C58: 0
B59: K092 | C59: 0
B60: K093 | C60: 0
B61: K094 | C61: 0
B62: K101 | C62: 0
B63: K102 | C63: 0
B64: K103 | C64: 0
B65: K104 | C65: 0
B66: K021Abluft | C66: 0
B67: K022Abluft | C67: 0
B68: K011Abluft | C68: 0
B69: K012Abluft | C69: 0

Sheet RL-CAP (hidden)
A1: Übergabedaten: | C1: Gewählter Durchlass | E1: =CONCATENATE(Auslegung!$D$12,Auslegung!$D$18,Auslegung!$D$25) -> MPC-R-M600250
C2: Volumenstrom | E2: =Auslegung!$D$32 -> 490
C3: Temperaturdifferenz | E3: =Auslegung!$D$35-Auslegung!$D$34 -> 8
C4: MPC-R-L600 | D4: MPC-R-L600 | E4: MPC-R-L600 | F4: MPC-R-L600 | G4: MPC-R-L600 | H4: MPC-R-L625 | I4: MPC-R-L625 | J4: MPC-R-L625 | K4: MPC-R-L625 | L4: MPC-R-L625
C5: 125 | D5: 160 | E5: 200 | F5: 225 | G5: 250 | H5: 125 | I5: 160 | J5: 200 | K5: 225 | L5: 250
C6: =CONCATENATE(C4,C5) -> MPC-R-L600125 | D6: =CONCATENATE(D4,D5) -> MPC-R-L600160 | E6: MPC-R-L600200 | F6: MPC-R-L600225 | G6: MPC-R-L600250 | H6: =CONCATENATE(H4,H5) -> MPC-R-L625125 | I6: =CONCATENATE(I4,I5) -> MPC-R-L625160 | J6: MPC-R-L625200 | K6: MPC-R-L625225 | L6: MPC-R-L625250 | M6: 1
M7: 2
A8: Konstante | B8: K011 | C8: 0.0009575658777 | D8: 0.0001488197474 | E8: 0.0002075291945 | F8: 0.0001603695807 | G8: 0.0001603695807 | H8: 0.0009575658777 | I8: 0.0001488197474 | J8: 0.0002075291945 | K8: 0.0001603695807 | L8: 0.0001603695807 | M8: 3
B9: K012 | C9: 1.91514583 | D9: 2.079365707 | E9: 1.958267509 | F9: 1.929554242 | G9: 1.929554242 | H9: 1.91514583 | I9: 2.079365707 | J9: 1.958267509 | K9: 1.929554242 | L9: 1.929554242 | M9: 4
B10: K021 | M10: 5
B11: K022 | M11: 6
B12: K031 | C12: 0.0008688084441 | D12: 0.0008688084441 | E12: 0.0008688084441 | F12: 0.0008688084441 | G12: 0.0008688084441 | H12: 0.0008688084441 | I12: 0.0008688084441 | J12: 0.0008688084441 | K12: 0.0008688084441 | L12: 0.0008688084441 | M12: 7
B13: K032 | C13: 1 | D13: 1 | E13: 1 | F13: 1 | G13: 1 | H13: 1 | I13: 1 | J13: 1 | K13: 1 | L13: 1 | M13: 8 | O13: Annahme: Keine Dissipation im Stoß (wie auch bei Standard-Drallern)
B14: K033 | C14: 1.128107476 | D14: 1.128107476 | E14: 1.128107476 | F14: 1.128107476 | G14: 1.128107476 | H14: 1.128107476 | I14: 1.128107476 | J14: 1.128107476 | K14: 1.128107476 | L14: 1.128107476 | M14: 9
B15: K034 | M15: 10
B16: K041 | C16: 5.348218998e-06 | D16: 5.348218998e-06 | E16: 5.348218998e-06 | F16: 5.348218998e-06 | G16: 5.348218998e-06 | H16: 5.348218998e-06 | I16: 5.348218998e-06 | J16: 5.348218998e-06 | K16: 5.348218998e-06 | L16: 5.348218998e-06 | M16: 11
B17: K042 | C17: 0.4336209008 | D17: 0.4336209008 | E17: 0.4336209008 | F17: 0.4336209008 | G17: 0.4336209008 | H17: 0.4336209008 | I17: 0.4336209008 | J17: 0.4336209008 | K17: 0.4336209008 | L17: 0.4336209008 | M17: 12
B18: K043 | C18: 2.194468394 | D18: 2.194468394 | E18: 2.194468394 | F18: 2.194468394 | G18: 2.194468394 | H18: 2.194468394 | I18: 2.194468394 | J18: 2.194468394 | K18: 2.194468394 | L18: 2.194468394 | M18: 13
B19: K051 | C19: 0.31 | D19: 0.31 | E19: 0.31 | F19: 0.31 | G19: 0.31 | H19: 0.31 | I19: 0.31 | J19: 0.31 | K19: 0.31 | L19: 0.31 | M19: 14 | O19: Achtung! Konstanten K051 und K052 aus Konstantensatz VAL DN 250 verwendet!
B20: K052 | C20: 1 | D20: 1 | E20: 1 | F20: 1 | G20: 1 | H20: 1 | I20: 1 | J20: 1 | K20: 1 | L20: 1 | M20: 15
B21: K071 | M21: 16
B22: K072 | M22: 17
B23: K081 | M23: 18
B24: K082 | M24: 19
B25: K083 | M25: 20
B26: K091 | M26: 21
B27: K092 | M27: 22
B28: K093 | M28: 23
B29: K094 | M29: 24
B30: K101 | M30: 25
B31: K102 | M31: 26
B32: K103 | M32: 27
B33: K104 | M33: 28
B34: K021Abluft | M34: 29
B35: K022Abluft | M35: 30
B36: K011Abluft
B37: K012Abluft
C38: =IFERROR(HLOOKUP($E$1,$C$6:$L$33,M6,FALSE),"") -> 
C39: =IFERROR(HLOOKUP($E$1,$C$6:$L$33,M7,FALSE),"") -> 
A40: Rückgabe | B40: K011
B41: K012
B42: K021
B43: K022
B44: K031
B45: K032
B46: K033
B47: K034
B48: K041
B49: K042
B50: K043
B51: K051
B52: K052
B53: K071
B54: K072
B55: K081
B56: K082
B57: K083
B58: K091
B59: K092
B60: K093
B61: K094
B62: K101
B63: K102
B64: K103
B65: K104
B66: K021Abluft
B67: K022Abluft
B68: K011Abluft
B69: K012Abluft

Sheet V-CAP (hidden)
A1: Übergabedaten: | C1: Gewählter Durchlass | E1: =CONCATENATE(Auslegung!$D$12,Auslegung!$D$18,Auslegung!$D$25) -> MPC-R-M600250
C2: Volumenstrom | E2: =Auslegung!$D$32 -> 490
C3: Temperaturdifferenz | E3: =Auslegung!$D$35-Auslegung!$D$34 -> 8
C4: MPC-V300 | D4: MPC-V300 | E4: MPC-V300 | F4: MPC-V600 | G4: MPC-V600 | H4: MPC-V600 | I4: MPC-V600 | J4: MPC-V600 | K4: MPC-V625 | L4: MPC-V625 | M4: MPC-V625 | N4: MPC-V625 | O4: MPC-V625
C5: 100 | D5: 125 | E5: 160 | F5: 125 | G5: 160 | H5: 200 | I5: 225 | J5: 250 | K5: 125 | L5: 160 | M5: 200 | N5: 225 | O5: 250
C6: =CONCATENATE(C4,C5) -> MPC-V300100 | D6: =CONCATENATE(D4,D5) -> MPC-V300125 | E6: MPC-V300160 | F6: MPC-V600125 | G6: MPC-V600160 | H6: MPC-V600200 | I6: MPC-V600225 | J6: MPC-V600250 | K6: =CONCATENATE(K4,K5) -> MPC-V625125 | L6: MPC-V625160 | M6: MPC-V625200 | N6: MPC-V625225 | O6: MPC-V625250 | P6: 1
P7: 2
A8: Konstante | B8: K011 | C8: 0.001242824507 | D8: 0.0002246185136 | E8: 0.001234337522 | F8: 0.0009299531954 | G8: 0.0002758945041 | H8: 0.0002101441243 | I8: 0.0001257699698 | J8: 0.0001257699698 | K8: 0.0009299531954 | L8: 0.0002758945041 | M8: 0.0002101441243 | N8: 0.0001257699698 | O8: 0.0001257699698 | P8: 3
B9: K012 | C9: 2.056563554 | D9: 2.28549218 | E9: 1.862442977 | F9: 1.907622096 | G9: 1.96837286 | H9: 1.956468107 | I9: 1.981088689 | J9: 1.981088689 | K9: 1.907622096 | L9: 1.96837286 | M9: 1.956468107 | N9: 1.981088689 | O9: 1.981088689 | P9: 4
B10: K021 | P10: 5
B11: K022 | P11: 6
B12: K031 | P12: 7
B13: K032 | C13: 1 | D13: 1 | E13: 1 | F13: 1 | G13: 1 | H13: 1 | I13: 1 | J13: 1 | K13: 1 | L13: 1 | M13: 1 | N13: 1 | O13: 1 | P13: 8 | R13: Annahme: Keine Dissipation im Stoß (wie auch bei Standard-Drallern)
B14: K033 | P14: 9
B15: K034 | P15: 10
B16: K041 | P16: 11
B17: K042 | P17: 12
B18: K043 | P18: 13
B19: K051 | P19: 14
B20: K052 | C20: 1 | D20: 1 | E20: 1 | F20: 1 | G20: 1 | H20: 1 | I20: 1 | J20: 1 | K20: 1 | L20: 1 | M20: 1 | N20: 1 | O20: 1 | P20: 15
B21: K071 | P21: 16
B22: K072 | P22: 17
B23: K081 | P23: 18
B24: K082 | P24: 19
B25: K083 | P25: 20
B26: K091 | P26: 21
B27: K092 | P27: 22
B28: K093 | P28: 23
B29: K094 | P29: 24
B30: K101 | P30: 25
B31: K102 | P31: 26
B32: K103 | P32: 27
B33: K104 | P33: 28
B34: K021Abluft | P34: 29
B35: K022Abluft | P35: 30
B36: K011Abluft
B37: K012Abluft
C38: =IFERROR(HLOOKUP($E$1,$C$6:$O$37,P6,FALSE),"") -> 
C39: =IFERROR(HLOOKUP($E$1,$C$6:$O$37,P7,FALSE),"") -> 
A40: Rückgabe | B40: K011
B41: K012
B42: K021
B43: K022
B44: K031
B45: K032
B46: K033
B47: K034
B48: K041
B49: K042
B50: K043
B51: K051
B52: K052
B53: K071
B54: K072
B55: K081
B56: K082
B57: K083
B58: K091
B59: K092
B60: K093
B61: K094
B62: K101
B63: K102
B64: K103
B65: K104
B66: K021Abluft
B67: K022Abluft
B68: K011Abluft
B69: K012Abluft

Sheet Q-CAP (hidden)
A1: Übergabedaten: | C1: Gewählter Durchlass | E1: =CONCATENATE(Auslegung!$D$12,Auslegung!$D$18,Auslegung!$D$25) -> MPC-R-M600250
C2: Volumenstrom | E2: =Auslegung!$D$32 -> 490
C3: Temperaturdifferenz | E3: =Auslegung!$D$35-Auslegung!$D$34 -> 8
C4: MPC-Q300 | D4: MPC-Q300 | E4: MPC-Q300 | F4: MPC-Q600 | G4: MPC-Q600 | H4: MPC-Q600 | I4: MPC-Q600 | J4: MPC-Q600 | K4: MPC-Q625 | L4: MPC-Q625 | M4: MPC-Q625 | N4: MPC-Q625 | O4: MPC-Q625
C5: 100 | D5: 125 | E5: 160 | F5: 125 | G5: 160 | H5: 200 | I5: 225 | J5: 250 | K5: 125 | L5: 160 | M5: 200 | N5: 225 | O5: 250
C6: =CONCATENATE(C4,C5) -> MPC-Q300100 | D6: =CONCATENATE(D4,D5) -> MPC-Q300125 | E6: MPC-Q300160 | F6: MPC-Q600125 | G6: MPC-Q600160 | H6: MPC-Q600200 | I6: MPC-Q600225 | J6: MPC-Q600250 | K6: =CONCATENATE(K4,K5) -> MPC-Q625125 | L6: MPC-Q625160 | M6: MPC-Q625200 | N6: MPC-Q625225 | O6: MPC-Q625250 | P6: 1
P7: 2
A8: Konstante | B8: K011 | C8: 0.0008260908514 | D8: 0.0003545909502 | E8: 2.834190013e-05 | F8: 0.0005653676539 | G8: 0.000199071305 | H8: 0.0002094316637 | I8: 5.598653841e-05 | J8: 5.598653841e-05 | K8: 0.0005653676539 | L8: 0.000199071305 | M8: 0.0002094316637 | N8: 5.598653841e-05 | O8: 5.598653841e-05 | P8: 3
B9: K012 | C9: 2.064033164 | D9: 2.086489965 | E9: 2.435953585 | F9: 1.971983457 | G9: 1.965239846 | H9: 1.957038538 | I9: 1.979813891 | J9: 1.979813891 | K9: 1.971983457 | L9: 1.965239846 | M9: 1.957038538 | N9: 1.979813891 | O9: 1.979813891 | P9: 4
B10: K021 | P10: 5
B11: K022 | P11: 6
B12: K031 | P12: 7
B13: K032 | P13: 8
B14: K033 | P14: 9
B15: K034 | P15: 10
B16: K041 | P16: 11
B17: K042 | P17: 12
B18: K043 | P18: 13
B19: K051 | P19: 14
B20: K052 | P20: 15
B21: K071 | P21: 16
B22: K072 | P22: 17
B23: K081 | P23: 18
B24: K082 | P24: 19
B25: K083 | P25: 20
B26: K091 | P26: 21
B27: K092 | P27: 22
B28: K093 | P28: 23
B29: K094 | P29: 24
B30: K101 | P30: 25
B31: K102 | P31: 26
B32: K103 | P32: 27
B33: K104 | P33: 28
B34: K021Abluft | P34: 29
B35: K022Abluft | P35: 30
B36: K011Abluft | C36: 0.0008012176099 | D36: 0.0003160949818 | E36: 3.075515366e-05 | F36: 0.0005746167581 | G36: 0.0002075291945 | H36: 0.0002080480279 | I36: 7.422459907e-05 | J36: 7.422459907e-05 | K36: 0.0005746167581 | L36: 0.0002075291945 | M36: 0.0002080480279 | N36: 7.422459907e-05 | O36: 7.422459907e-05 | P36: 31
B37: K012Abluft | C37: 2.069956232 | D37: 2.106764031 | E37: 2.422115578 | F37: 1.969246582 | G37: 1.958267509 | H37: 1.95803429 | I37: 1.938123268 | J37: 1.938123268 | K37: 1.969246582 | L37: 1.958267509 | M37: 1.95803429 | N37: 1.938123268 | O37: 1.938123268 | P37: 32
C39: =IFERROR(HLOOKUP($E$1,$C$6:$O$33,P7,FALSE),"") -> 
A40: Rückgabe | B40: K011 | C40: =IFERROR(HLOOKUP($E$1,$C$6:$O$33,P8,FALSE),"") -> 
B41: K012
B42: K021
B43: K022
B44: K031
B45: K032
B46: K033
B47: K034
B48: K041
B49: K042
B50: K043
B51: K051
B52: K052
B53: K071
B54: K072
B55: K081
B56: K082
B57: K083
B58: K091
B59: K092
B60: K093
B61: K094
B62: K101
B63: K102
B64: K103
B65: K104
B66: K021Abluft
B67: K022Abluft
B68: K011Abluft
B69: K012Abluft
